Workbook

Sheet フォーマット更新情報 (hidden)
D4: フォーマット更新情報 | H4: 2019-08-06
D8: 再現確認後 | G8: ・立ち上げのたびに不具合がでる（リンク先が表示される）
D11: 済 | G11: ・見積マスタ内 保守コスト5年レンタルの場合２％上乗せ→上乗せなしに戻す
D12: 済 | G12: ・商品マスタ内、在庫消化対象に「MIMAMOベースライト群を追加」
D13: 済 | G13: ・商品マスタの表示順を整理（管球交換～器具交換 × 自社製品～他社製品）
D14: 済 | G14: ・基本情報入力シート内、廃材費の1円未満端数切捨て
D15: 済 | G15: ・【提案書】導入効果ページのグラフ (レンタル期間中負担額あり) のグラフを更新
D16: 済 | G16: ・【提案書】まとめ文章 (レンタル期間中負担額あり) の追加
D17: 済 | G17: ・在庫品不使用_見積シートの修正(全製品の自動計算対応)
D18: 済 | G18: ・見積フォーマットのレイアウト変更（集計欄を上段に。下段に明細）
D21: フォーマット更新情報 | H21: 2019-12-03
D23: ①商品マスタ：ユアーズ、コーウェル製品削除
D24: ②商品マスタ：消化対象MIMAMO在庫で抜けていた製品を追加
D25: ③商品マスタ：他社製品追加（ｵｰﾃﾞﾘｯｸFL10・FL15W、水銀灯ランプなど）

Sheet 数量表
A1: 【 既設器具および代替ＬＥＤ照明消費電力積算数量表 】
A2: 彦根市立病院 LED化事業対象照明一覧表
A4: 【適用】 | C4: ・白熱電球（E26・調光含む）の箇所はLED電球と白熱球が混ざっていて病院側でストックもあり、工事時に数量が現状と変わっている可能性が高いため対象外で設定 ・直管蛍光灯の色味が現状白色（4000k）だが既にLED化が済んでいる箇所は昼白色(5000k)となっている。統一のため直管LEDは昼白色で統一 ・埋込クリーンルーム調光器具が使われている箇所（2階一部病室・ICU・NICUなど）は通常照明ではないため選定としては調光機能のみを持った器具で選定。
O5: LED対象ランプ総数 | Q5: =U13 -> 5687 | W5: LED対象箇所 電力計（KW） | AA5: =AD13 -> 285.64
W6: LED対象箇所 電力量総計（kwh） | AA6: =AF13 -> 102830.04
O8: 現状 | P8: 器具総数 | S8: ランプ総数 | AD8: 電力 総計（KW） | AF8: 消費電力量 総計（kwh）
P9: =SUBTOTAL(9,R17:R2677) -> 6996 | S9: =SUBTOTAL(9,S17:S2677) -> 8776 | X9: うち使用中 ランプ | Z9: うち不使用 ランプ数 | AB9: うちLED済 ランプ
X10: =SUBTOTAL(9,V17:V2677) -> 8460 | Z10: =SUBTOTAL(9,T17:T2677) -> 316 | AB10: =SUBTOTAL(9,W17:W2677) -> 581 | AD10: =ROUND(SUBTOTAL(9,AE17:AE2677)/1000,2) -> 354.31 | AF10: =ROUND(SUBTOTAL(9,AD17:AD2677),2) -> 127550.88
O11: LED対象箇所 | P11: 対象外 器具数 | Q11: 対象 器具数 | S11: 対象外 ランプ数 | U11: 対象 ランプ数 | AD11: 電力 総計（KW） | AF11: 消費電力量 総計（kwh）
X12: うち使用中 ランプ | Z12: うち不使用 ランプ数 | AB12: うちLED済 ランプ
P13: =SUBTOTAL(9,X17:X2677) -> 2599 | Q13: =P9-P13 -> 4397 | S13: =SUBTOTAL(9,Y17:Y2677) -> 3082 | U13: =SUBTOTAL(9,AA17:AA2677) -> 5687 | X13: =X10-S13 -> 5378 | Z13: 8 | AB13: 0 | AD13: =ROUND(SUBTOTAL(9,AG17:AG2677)/1000,2) -> 285.64 | AF13: =ROUND(SUBTOTAL(9,AF17:AF2677),2) -> 102830.04
E15: 設置場所 | G15: 既設器具種類・用途など | O15: 既存照明ランプの稼動状況 | X15: LED化対象 | AB15: 点灯状況 | AD15: 照明電力量、照明電力使用状況 | AH15: LED化プラン
A16: NO | B16: 工事 NO | C16: 棟名 | D16: フロア | E16: 設置エリア | F16: 設置場所 | G16: 器具種類 | H16: サイズ | I16: 設置方法 | J16: 用途 | K16: 付加機能 | L16: 付加機能２ | M16: 色温度 | N16: その他 | O16: 既設照明ランプ種類 | P16: ランプの 消費電力 (安定器含) | Q16: 器具内 ランプ数 | R16: 器具 台数 | S16: ランプ 総数 | T16: うち 間引き ランプ数 | U16: うち 消灯 ランプ数 | V16: うち 使用 ランプ数 | W16: うち LED済 ランプ数 | X16: 対象外 器具数 | Y16: 対象外 ランプ数 | Z16: 対象 器具数 | AA16: 対象 ランプ数 | AB16: 点灯 時間 /1日 | AC16: 使用 日数 /月 | AD16: 使用ランプ 消費電力量 合計（kｗh） | AE16: 使用ランプ 電力合計（W） | AF16: LED対象ランプ 消費電力量 合計（kｗh） | AG16: LED対象ランプ 電力合計（W） | AH16: 交換種別
A17: =IF(COUNTA(B17:O17)=0,"",ROW()-16) -> 1 | B17: 1 | D17: 8 | F17: 808(4床) | G17: ユニバーサルダウンライト | H17: φ150 | I17: 埋込 | J17: 処置灯 | M17: 3000 | O17: ハロゲンランプ（棒状） JD110V85W (口金：E11) 【85W】 | P17: 85 | Q17: 1 | R17: 4 | S17: =IF(R17="","",Q17*R17) -> 4 | T17: 0 | U17: 0 | V17: =IF(S17="","",S17-T17) -> 4 | X17: =IF(O17="","",IF(OR(AH17="【対象外】",AH17="【LED済】"),R17,IF(Y17>0,Y17/Q17,0))) -> 0 | Y17: =IF(O17="","",IF(OR(AH17="管球交換 【間引き対象外】",AH17="器具交換 【間引き対象外】"),T17,IF(OR(AH17="【対象外】",AH17="【LED済】"),S17,0))) -> 0 | Z17: =IF(R17="","",R17-X17) -> 4 | AA17: =IF(S17="","",S17-Y17) -> 4 | AB17: 12 | AC17: 30 | AD17: =IF(O17="","",IF(V17="","",P17*V17*AB17*AC17/1000)) -> 122.4 | AE17: =IF(O17="","",IF(V17="","",P17*V17)) -> 340 | AF17: =IF(O17="","",IF(AA17="","",P17*AA17*AB17*AC17/1000)) -> 122.4 | AG17: =IF(O17="","",IF(AA17="","",IF(AA17=0,"",P17*AA17))) -> 340 | AH17: 器具交換
A18: 2 | B18: 1 | D18: 8 | F18: 808(4床) | G18: ベッド灯 | I18: 壁付け | K18: カバー | M18: 3000 | N18: ヤマギワ K5005W スイッチプルではなく片切りスイッチ | O18: FPL55+FPL18+ナツメ球 | P18: 84 | Q18: 1 | R18: 4 | S18: 4 | T18: 0 | U18: 0 | V18: 4 | X18: 0 | Y18: 0 | Z18: 4 | AA18: 4 | AB18: 12 | AC18: 30 | AD18: =IF(O18="","",IF(V18="","",P18*V18*AB18*AC18/1000)) -> 120.96 | AE18: 336 | AF18: 120.96 | AG18: 336 | AH18: 器具交換
A19: 3 | B19: 1 | D19: 8 | F19: 808(4床) | G19: ベッド灯 | I19: 壁付け | K19: カバー | L19: プルスイッチ | M19: 3000 | N19: 上記と同じ器具 ヤマギワ K5005W | O19: コンパクト形蛍光灯 FPL18EX 【18W】 | P19: 21 | Q19: 1 | R19: 4 | S19: 4 | T19: 0 | U19: 0 | V19: 4 | X19: 4 | Y19: 4 | Z19: 0 | AA19: 0 | AB19: 12 | AC19: 30 | AD19: 30.24 | AE19: 84 | AF19: 0 | AH19: 【対象外】
A20: 4 | B20: 1 | D20: 8 | F20: 808(4床) | G20: ベッド灯 | I20: 壁付け | K20: カバー | L20: プルスイッチ | M20: 3000 | N20: 上記と同じ器具 ヤマギワ K5005W | O20: ナツメ球 5W (口金 ： E12) 【5W】 | P20: 5 | Q20: 1 | R20: 4 | S20: 4 | T20: 0 | U20: 0 | V20: 4 | X20: 4 | Y20: 4 | Z20: 0 | AA20: 0 | AB20: 12 | AC20: 30 | AD20: 7.2 | AE20: 20 | AF20: 0 | AH20: 【対象外】
A21: 5 | B21: 1 | D21: 8 | F21: 808(4床) | G21: ダウンライト | H21: φ150 | I21: 埋込 | K21: カバー | M21: 3000 | O21: コンパクト形蛍光灯 FDL13EX 【13W】 | P21: 16 | Q21: 1 | R21: 1 | S21: 1 | T21: 0 | U21: 0 | V21: 1 | X21: 0 | Y21: 0 | Z21: 1 | AA21: 1 | AB21: 12 | AC21: 30 | AD21: 5.76 | AE21: 16 | AF21: 5.76 | AG21: 16 | AH21: 器具交換
A22: 6 | B22: 1 | D22: 8 | F22: 808(4床) | G22: ブラケット | I22: 壁付け | K22: カバー | M22: 3000 | O22: 電球形蛍光灯 EFD15/12E (口金：E26) 【12W】 | P22: 12 | Q22: 1 | R22: 1 | S22: 1 | T22: 0 | U22: 0 | V22: 1 | X22: 1 | Y22: 1 | Z22: 0 | AA22: 0 | AB22: 12 | AC22: 30 | AD22: 4.32 | AE22: 12 | AF22: 0 | AH22: 【対象外】
A23: 7 | B23: 1 | D23: 8 | F23: 808(4床) | G23: ダウンライト | H23: φ150 | I23: 埋込 | M23: 3000 | O23: 電球形蛍光灯 EFD15/12E (口金：E26) 【12W】 | P23: 12 | Q23: 1 | R23: 1 | S23: 1 | T23: 0 | U23: 0 | V23: 1 | X23: 1 | Y23: 1 | Z23: 0 | AA23: 0 | AB23: 12 | AC23: 30 | AD23: 4.32 | AE23: 12 | AF23: 0 | AH23: 【対象外】
A24: 8 | B24: 2 | D24: 8 | F24: 801(2床) | G24: ダウンライト | H24: φ150 | I24: 埋込 | K24: 乳白カバー | M24: 3000 | O24: コンパクト形蛍光灯 FDL13EX 【13W】 | P24: 16 | Q24: 1 | R24: 2 | S24: 2 | T24: 0 | U24: 0 | V24: 2 | X24: 0 | Y24: 0 | Z24: 2 | AA24: 2 | AB24: 12 | AC24: 30 | AD24: 11.52 | AE24: 32 | AF24: 11.52 | AG24: 32 | AH24: 器具交換
A25: 9 | B25: 2 | D25: 8 | F25: 801(2床) | G25: ユニバーサルダウンライト | H25: φ150 | I25: 埋込 | J25: 処置灯 | M25: 3000 | O25: ハロゲンランプ（棒状） JD110V85W (口金：E11) 【85W】 | P25: 85 | Q25: 1 | R25: 2 | S25: 2 | T25: 0 | U25: 0 | V25: 2 | X25: 0 | Y25: 0 | Z25: 2 | AA25: 2 | AB25: 12 | AC25: 30 | AD25: 61.2 | AE25: 170 | AF25: 61.2 | AG25: 170 | AH25: 器具交換
A26: 10 | B26: 2 | D26: 8 | F26: 801(2床) | G26: 埋込形 | H26: W220 | I26: 埋込 | K26: 乳白カバー | M26: 4000 | O26: 直管蛍光灯 FHF32EX 高出力形 【45W】 | P26: 48 | Q26: 2 | R26: 4 | S26: 8 | T26: 0 | U26: 0 | V26: 8 | X26: 0 | Y26: 0 | Z26: 4 | AA26: 8 | AB26: 12 | AC26: 30 | AD26: 138.24 | AE26: 384 | AF26: 138.24 | AG26: 384 | AH26: 管球交換
A27: 11 | B27: 2 | D27: 8 | F27: 801(2床) | G27: ブラケット | I27: 壁付け | K27: 乳白カバー | M27: 3000 | O27: 電球形蛍光灯 EFD15/12E (口金：E26) 【12W】 | P27: 12 | Q27: 1 | R27: 1 | S27: 1 | T27: 0 | U27: 0 | V27: 1 | X27: 1 | Y27: 1 | Z27: 0 | AA27: 0 | AB27: 12 | AC27: 30 | AD27: 4.32 | AE27: 12 | AF27: 0 | AH27: 【対象外】
A28: 12 | B28: 3 | D28: 8 | F28: 802(1床) | G28: ベッド灯 | K28: プルスイッチ | M28: 3000 | N28: LEDB-30902PWW-LD1 | O28: 【器具LED済】 | P28: 0 | Q28: 1 | R28: 1 | S28: 1 | T28: 0 | U28: 0 | V28: 1 | W28: =V28 -> 1 | X28: 1 | Y28: 1 | Z28: 0 | AA28: 0 | AB28: 12 | AC28: 30 | AD28: 0 | AE28: 0 | AF28: 0 | AH28: 【LED済】
A29: 13 | B29: 3 | D29: 8 | F29: 802(1床) | G29: ユニバーサルダウンライト | H29: φ150 | I29: 埋込 | J29: 処置灯 | M29: 3000 | O29: ハロゲンランプ（棒状） JD110V85W (口金：E11) 【85W】 | P29: 85 | Q29: 1 | R29: 1 | S29: 1 | T29: 0 | U29: 0 | V29: 1 | X29: 0 | Y29: 0 | Z29: 1 | AA29: 1 | AB29: 12 | AC29: 30 | AD29: 30.6 | AE29: 85 | AF29: 30.6 | AG29: 85 | AH29: 器具交換
A30: 14 | B30: 3 | D30: 8 | F30: 802(1床) | G30: ダウンライト | H30: φ150 | I30: 埋込 | K30: 乳白カバー | M30: 3000 | O30: コンパクト形蛍光灯 FDL13EX 【13W】 | P30: 16 | Q30: 1 | R30: 2 | S30: 2 | T30: 0 | U30: 0 | V30: 2 | X30: 0 | Y30: 0 | Z30: 2 | AA30: 2 | AB30: 12 | AC30: 30 | AD30: 11.52 | AE30: 32 | AF30: 11.52 | AG30: 32 | AH30: 器具交換
A31: 15 | B31: 3 | D31: 8 | F31: 802(1床) | G31: ダウンライト | H31: φ150 | I31: 埋込 | K31: 乳白カバー | M31: 3000 | N31: E26 | O31: 【管球LED済】 | P31: 0 | Q31: 1 | R31: 1 | S31: 1 | T31: 0 | U31: 0 | V31: 1 | W31: =V31 -> 1 | X31: 1 | Y31: 1 | Z31: 0 | AA31: 0 | AB31: 12 | AC31: 30 | AD31: 0 | AE31: 0 | AF31: 0 | AH31: 【LED済】
A32: 16 | B32: 3 | D32: 8 | F32: 802(1床) | G32: ブラケット | I32: 壁付け | K32: 乳白カバー | M32: 3000 | O32: 電球形蛍光灯 EFD15/12E (口金：E26) 【12W】 | P32: 12 | Q32: 1 | R32: 1 | S32: 1 | T32: 0 | U32: 0 | V32: 1 | X32: 1 | Y32: 1 | Z32: 0 | AA32: 0 | AB32: 12 | AC32: 30 | AD32: 4.32 | AE32: 12 | AF32: 0 | AH32: 【対象外】
A33: 17 | B33: 4 | D33: 8 | F33: 803(1床) | G33: ユニバーサルダウンライト | H33: φ150 | I33: 埋込 | J33: 処置灯 | M33: 3000 | O33: ハロゲンランプ（棒状） JD110V85W (口金：E11) 【85W】 | P33: 85 | Q33: 1 | R33: 1 | S33: 1 | T33: 0 | U33: 0 | V33: 1 | X33: 0 | Y33: 0 | Z33: 1 | AA33: 1 | AB33: 12 | AC33: 30 | AD33: 30.6 | AE33: 85 | AF33: 30.6 | AG33: 85 | AH33: 器具交換
A34: 18 | B34: 4 | D34: 8 | F34: 803(1床) | G34: ダウンライト | H34: φ150 | I34: 埋込 | K34: 乳白カバー | M34: 3000 | O34: コンパクト形蛍光灯 FDL13EX 【13W】 | P34: 16 | Q34: 1 | R34: 2 | S34: 2 | T34: 0 | U34: 0 | V34: 2 | X34: 0 | Y34: 0 | Z34: 2 | AA34: 2 | AB34: 12 | AC34: 30 | AD34: 11.52 | AE34: 32 | AF34: 11.52 | AG34: 32 | AH34: 器具交換
A35: 19 | B35: 4 | D35: 8 | F35: 803(1床) | G35: ダウンライト | H35: φ150 | I35: 埋込 | K35: 乳白カバー | M35: 3000 | N35: E26 | O35: 【管球LED済】 | P35: 0 | Q35: 1 | R35: 1 | S35: 1 | T35: 0 | U35: 0 | V35: 1 | W35: =V35 -> 1 | X35: 1 | Y35: 1 | Z35: 0 | AA35: 0 | AB35: 12 | AC35: 30 | AD35: 0 | AE35: 0 | AF35: 0 | AH35: 【LED済】
A36: 20 | B36: 4 | D36: 8 | F36: 803(1床) | G36: ブラケット | I36: 壁付け | K36: 乳白カバー | M36: 3000 | O36: 電球形蛍光灯 EFD15/12E (口金：E26) 【12W】 | P36: 12 | Q36: 1 | R36: 1 | S36: 1 | T36: 0 | U36: 0 | V36: 1 | X36: 1 | Y36: 1 | Z36: 0 | AA36: 0 | AB36: 12 | AC36: 30 | AD36: 4.32 | AE36: 12 | AF36: 0 | AH36: 【対象外】
A37: 21 | B37: 4 | D37: 8 | F37: 803(1床) | G37: ベッド灯 | I37: 壁付け | K37: プルスイッチ | M37: 3000 | N37: LEDB-30902PWW-LD1 | O37: 【器具LED済】 | P37: 0 | Q37: 1 | R37: 1 | S37: 1 | T37: 0 | U37: 0 | V37: 1 | W37: =V37 -> 1 | X37: 1 | Y37: 1 | Z37: 0 | AA37: 0 | AB37: 12 | AC37: 30 | AD37: 0 | AE37: 0 | AF37: 0 | AH37: 【LED済】
A38: 22 | B38: 5 | D38: 8 | F38: 804(1床) | G38: ユニバーサルダウンライト | H38: φ150 | I38: 埋込 | J38: 処置灯 | M38: 3000 | O38: ハロゲンランプ（棒状） JD110V85W (口金：E11) 【85W】 | P38: 85 | Q38: 1 | R38: 1 | S38: 1 | T38: 0 | U38: 0 | V38: 1 | X38: 0 | Y38: 0 | Z38: 1 | AA38: 1 | AB38: 12 | AC38: 30 | AD38: 30.6 | AE38: 85 | AF38: 30.6 | AG38: 85 | AH38: 器具交換
A39: 23 | B39: 5 | D39: 8 | F39: 804(1床) | G39: ダウンライト | H39: φ150 | I39: 埋込 | K39: 乳白カバー | M39: 3000 | O39: コンパクト形蛍光灯 FDL13EX 【13W】 | P39: 16 | Q39: 1 | R39: 2 | S39: 2 | T39: 0 | U39: 0 | V39: 2 | X39: 0 | Y39: 0 | Z39: 2 | AA39: 2 | AB39: 12 | AC39: 30 | AD39: 11.52 | AE39: 32 | AF39: 11.52 | AG39: 32 | AH39: 器具交換
A40: 24 | B40: 5 | D40: 8 | F40: 804(1床) | G40: ダウンライト | H40: φ150 | I40: 埋込 | K40: 乳白カバー | M40: 3000 | N40: E26 | O40: 【管球LED済】 | P40: 0 | Q40: 1 | R40: 1 | S40: 1 | T40: 0 | U40: 0 | V40: 1 | W40: =V40 -> 1 | X40: 1 | Y40: 1 | Z40: 0 | AA40: 0 | AB40: 12 | AC40: 30 | AD40: 0 | AE40: 0 | AF40: 0 | AH40: 【LED済】
A41: 25 | B41: 5 | D41: 8 | F41: 804(1床) | G41: ブラケット | I41: 壁付け | K41: 乳白カバー | M41: 3000 | O41: 電球形蛍光灯 EFD15/12E (口金：E26) 【12W】 | P41: 12 | Q41: 1 | R41: 1 | S41: 1 | T41: 0 | U41: 0 | V41: 1 | X41: 1 | Y41: 1 | Z41: 0 | AA41: 0 | AB41: 12 | AC41: 30 | AD41: 4.32 | AE41: 12 | AF41: 0 | AH41: 【対象外】
A42: 26 | B42: 5 | D42: 8 | F42: 804(1床) | G42: ベッド灯 | I42: 壁付け | K42: プルスイッチ | M42: 3000 | N42: LEDB-30902PWW-LD1 | O42: 【器具LED済】 | P42: 0 | Q42: 1 | R42: 1 | S42: 1 | T42: 0 | U42: 0 | V42: 1 | W42: =V42 -> 1 | X42: 1 | Y42: 1 | Z42: 0 | AA42: 0 | AB42: 12 | AC42: 30 | AD42: 0 | AE42: 0 | AF42: 0 | AH42: 【LED済】
A43: 27 | B43: 6 | D43: 8 | F43: 805(1床) | G43: ユニバーサルダウンライト | H43: φ150 | I43: 埋込 | J43: 処置灯 | M43: 3000 | O43: ハロゲンランプ（棒状） JD110V85W (口金：E11) 【85W】 | P43: 85 | Q43: 1 | R43: 1 | S43: 1 | T43: 0 | U43: 0 | V43: 1 | X43: 0 | Y43: 0 | Z43: 1 | AA43: 1 | AB43: 12 | AC43: 30 | AD43: 30.6 | AE43: 85 | AF43: 30.6 | AG43: 85 | AH43: 器具交換
A44: 28 | B44: 6 | D44: 8 | F44: 805(1床) | G44: ダウンライト | H44: φ150 | I44: 埋込 | K44: 乳白カバー | M44: 3000 | O44: コンパクト形蛍光灯 FDL13EX 【13W】 | P44: 16 | Q44: 1 | R44: 2 | S44: 2 | T44: 0 | U44: 0 | V44: 2 | X44: 0 | Y44: 0 | Z44: 2 | AA44: 2 | AB44: 12 | AC44: 30 | AD44: 11.52 | AE44: 32 | AF44: 11.52 | AG44: 32 | AH44: 器具交換
A45: 29 | B45: 6 | D45: 8 | F45: 805(1床) | G45: ダウンライト | H45: φ150 | I45: 埋込 | K45: 乳白カバー | M45: 3000 | N45: E26 | O45: 【管球LED済】 | P45: 0 | Q45: 1 | R45: 1 | S45: 1 | T45: 0 | U45: 0 | V45: 1 | W45: =V45 -> 1 | X45: 1 | Y45: 1 | Z45: 0 | AA45: 0 | AB45: 12 | AC45: 30 | AD45: 0 | AE45: 0 | AF45: 0 | AH45: 【LED済】
A46: 30 | B46: 6 | D46: 8 | F46: 805(1床) | G46: ブラケット | I46: 壁付け | K46: 乳白カバー | M46: 3000 | O46: 電球形蛍光灯 EFD15/12E (口金：E26) 【12W】 | P46: 12 | Q46: 1 | R46: 1 | S46: 1 | T46: 0 | U46: 0 | V46: 1 | X46: 1 | Y46: 1 | Z46: 0 | AA46: 0 | AB46: 12 | AC46: 30 | AD46: 4.32 | AE46: 12 | AF46: 0 | AH46: 【対象外】
A47: 31 | B47: 6 | D47: 8 | F47: 805(1床) | G47: ベッド灯 | I47: 壁付け | K47: カバー | M47: 3000 | N47: ヤマギワ K5005W スイッチプルではなく片切りスイッチ | O47: FPL55+FPL18+ナツメ球 | P47: 84 | Q47: 1 | R47: 4 | S47: 4 | T47: 0 | U47: 0 | V47: 4 | X47: 0 | Y47: 0 | Z47: 4 | AA47: 4 | AB47: 12 | AC47: 30 | AD47: 120.96 | AE47: 336 | AF47: 120.96 | AG47: 336 | AH47: 器具交換
A48: 32 | B48: 6 | D48: 8 | F48: 805(1床) | G48: ベッド灯 | I48: 壁付け | K48: カバー | L48: プルスイッチ | M48: 3000 | N48: 上記と同じ器具 ヤマギワ K5005W | O48: コンパクト形蛍光灯 FPL18EX 【18W】 | P48: 21 | Q48: 1 | R48: 4 | S48: 4 | T48: 0 | U48: 0 | V48: 4 | X48: 4 | Y48: 4 | Z48: 0 | AA48: 0 | AB48: 12 | AC48: 30 | AD48: 30.24 | AE48: 84 | AF48: 0 | AH48: 【対象外】
A49: 33 | B49: 6 | D49: 8 | F49: 805(1床) | G49: ベッド灯 | I49: 壁付け | K49: カバー | L49: プルスイッチ | M49: 3000 | N49: 上記と同じ器具 ヤマギワ K5005W | O49: ナツメ球 5W (口金 ： E12) 【5W】 | P49: 5 | Q49: 1 | R49: 4 | S49: 4 | T49: 0 | U49: 0 | V49: 4 | X49: 4 | Y49: 4 | Z49: 0 | AA49: 0 | AB49: 12 | AC49: 30 | AD49: 7.2 | AE49: 20 | AF49: 0 | AH49: 【対象外】
A50: 34 | B50: 7 | D50: 8 | F50: 806(1床) | G50: 丸形シーリング | I50: 天付け | K50: 乳白カバー | M50: 3000 | N50: HA9661FEP | O50: 円型蛍光灯 ツイン FCL30・32E 【58W】 | P50: 61 | Q50: 1 | R50: 1 | S50: 1 | T50: 0 | U50: 0 | V50: 1 | X50: 0 | Y50: 0 | Z50: 1 | AA50: 1 | AB50: 12 | AC50: 30 | AD50: 21.96 | AE50: 61 | AF50: 21.96 | AG50: 61 | AH50: 器具交換
A51: 35 | B51: 7 | D51: 8 | F51: 806(1床) | G51: ダウンライト | H51: φ150 | I51: 埋込 | K51: 乳白カバー | M51: 3000 | O51: コンパクト形蛍光灯 FDL13EX 【13W】 | P51: 16 | Q51: 1 | R51: 1 | S51: 1 | T51: 0 | U51: 0 | V51: 1 | X51: 0 | Y51: 0 | Z51: 1 | AA51: 1 | AB51: 12 | AC51: 30 | AD51: 5.76 | AE51: 16 | AF51: 5.76 | AG51: 16 | AH51: 器具交換
A52: 36 | B52: 7 | D52: 8 | F52: 806(1床) | G52: ダウンライト | H52: φ150 | I52: 埋込 | K52: 乳白カバー | M52: 3000 | O52: 電球形蛍光灯 EFD15/12E (口金：E26) 【12W】 | P52: 12 | Q52: 1 | R52: 2 | S52: 2 | T52: 0 | U52: 0 | V52: 2 | X52: 2 | Y52: 2 | Z52: 0 | AA52: 0 | AB52: 12 | AC52: 30 | AD52: 8.64 | AE52: 24 | AF52: 0 | AH52: 【対象外】
A53: 37 | B53: 7 | D53: 8 | F53: 806(1床) | G53: ダウンライト | H53: φ150 | I53: 埋込 | K53: 乳白カバー | M53: 3000 | N53: E26 | O53: 【管球LED済】 | P53: 0 | Q53: 1 | R53: 1 | S53: 1 | T53: 0 | U53: 0 | V53: 1 | W53: =V53 -> 1 | X53: 1 | Y53: 1 | Z53: 0 | AA53: 0 | AB53: 12 | AC53: 30 | AD53: 0 | AE53: 0 | AF53: 0 | AH53: 【LED済】
A54: 38 | B54: 7 | D54: 8 | F54: 806(1床) | G54: ブラケット | I54: 壁付け | K54: 防水カバー | M54: 3000 | N54: E26 | O54: 【管球LED済】 | P54: 0 | Q54: 1 | R54: 1 | S54: 1 | T54: 0 | U54: 0 | V54: 1 | W54: 1 | X54: 1 | Y54: 1 | Z54: 0 | AA54: 0 | AB54: 12 | AC54: 30 | AD54: 0 | AE54: 0 | AF54: 0 | AH54: 【LED済】
A55: 39 | B55: 7 | D55: 8 | F55: 806(1床) | G55: 流し元灯 | I55: 天付け | M55: 5000 | O55: 直管蛍光灯 FL15 【15W】 | P55: 18 | Q55: 1 | R55: 1 | S55: 1 | T55: 0 | U55: 0 | V55: 1 | X55: 0 | Y55: 0 | Z55: 1 | AA55: 1 | AB55: 12 | AC55: 30 | AD55: 6.48 | AE55: 18 | AF55: 6.48 | AG55: 18 | AH55: 管球交換
A56: 40 | B56: 7 | D56: 8 | F56: 806(1床) | G56: ブラケット | I56: 壁付け | M56: 3000 | O56: 電球形蛍光灯 EFD15/12E (口金：E26) 【12W】 | P56: 12 | Q56: 1 | R56: 1 | S56: 1 | T56: 0 | U56: 0 | V56: 1 | X56: 1 | Y56: 1 | Z56: 0 | AA56: 0 | AB56: 12 | AC56: 30 | AD56: 4.32 | AE56: 12 | AF56: 0 | AH56: 【対象外】
A57: 41 | B57: 7 | D57: 8 | F57: 806(1床) | G57: ベッド灯 | I57: 壁付け | K57: カバー | M57: 3000 | N57: ヤマギワ K5005W スイッチプルではなく片切りスイッチ | O57: FPL55+FPL18+ナツメ球 | P57: 84 | Q57: 1 | R57: 4 | S57: 4 | T57: 0 | U57: 0 | V57: 4 | X57: 0 | Y57: 0 | Z57: 4 | AA57: 4 | AB57: 12 | AC57: 30 | AD57: 120.96 | AE57: 336 | AF57: 120.96 | AG57: 336 | AH57: 器具交換
A58: 42 | B58: 7 | D58: 8 | F58: 806(1床) | G58: ベッド灯 | I58: 壁付け | K58: カバー | L58: プルスイッチ | M58: 3000 | N58: 上記と同じ器具 ヤマギワ K5005W | O58: コンパクト形蛍光灯 FPL18EX 【18W】 | P58: 21 | Q58: 1 | R58: 4 | S58: 4 | T58: 0 | U58: 0 | V58: 4 | X58: 4 | Y58: 4 | Z58: 0 | AA58: 0 | AB58: 12 | AC58: 30 | AD58: 30.24 | AE58: 84 | AF58: 0 | AH58: 【対象外】
A59: 43 | B59: 7 | D59: 8 | F59: 806(1床) | G59: ベッド灯 | I59: 壁付け | K59: カバー | L59: プルスイッチ | M59: 3000 | N59: 上記と同じ器具 ヤマギワ K5005W | O59: ナツメ球 5W (口金 ： E12) 【5W】 | P59: 5 | Q59: 1 | R59: 4 | S59: 4 | T59: 0 | U59: 0 | V59: 4 | X59: 4 | Y59: 4 | Z59: 0 | AA59: 0 | AB59: 12 | AC59: 30 | AD59: 7.2 | AE59: 20 | AF59: 0 | AH59: 【対象外】
A60: 44 | B60: 8 | D60: 8 | F60: 807(4床) | G60: ユニバーサルダウンライト | H60: φ150 | I60: 埋込 | J60: 処置灯 | M60: 3000 | O60: ハロゲンランプ（棒状） JD110V85W (口金：E11) 【85W】 | P60: 85 | Q60: 1 | R60: 4 | S60: 4 | T60: 0 | U60: 0 | V60: 4 | X60: 0 | Y60: 0 | Z60: 4 | AA60: 4 | AB60: 12 | AC60: 30 | AD60: 122.4 | AE60: 340 | AF60: 122.4 | AG60: 340 | AH60: 器具交換
A61: 45 | B61: 8 | D61: 8 | F61: 807(4床) | G61: ダウンライト | H61: φ150 | I61: 埋込 | K61: カバー | M61: 3000 | O61: コンパクト形蛍光灯 FDL13EX 【13W】 | P61: 16 | Q61: 1 | R61: 1 | S61: 1 | T61: 0 | U61: 0 | V61: 1 | X61: 0 | Y61: 0 | Z61: 1 | AA61: 1 | AB61: 12 | AC61: 30 | AD61: 5.76 | AE61: 16 | AF61: 5.76 | AG61: 16 | AH61: 器具交換
A62: 46 | B62: 8 | D62: 8 | F62: 807(4床) | G62: ブラケット | I62: 壁付け | K62: カバー | M62: 3000 | O62: 電球形蛍光灯 EFD15/12E (口金：E26) 【12W】 | P62: 12 | Q62: 1 | R62: 1 | S62: 1 | T62: 0 | U62: 0 | V62: 1 | X62: 1 | Y62: 1 | Z62: 0 | AA62: 0 | AB62: 12 | AC62: 30 | AD62: 4.32 | AE62: 12 | AF62: 0 | AH62: 【対象外】
A63: 47 | B63: 8 | D63: 8 | F63: 807(4床) | G63: ベッド灯 | I63: 壁付け | K63: カバー | M63: 3000 | N63: ヤマギワ K5005W スイッチプルではなく片切りスイッチ | O63: FPL55+FPL18+ナツメ球 | P63: 84 | Q63: 1 | R63: 4 | S63: 4 | T63: 0 | U63: 0 | V63: 4 | X63: 0 | Y63: 0 | Z63: 4 | AA63: 4 | AB63: 12 | AC63: 30 | AD63: 120.96 | AE63: 336 | AF63: 120.96 | AG63: 336 | AH63: 器具交換
A64: 48 | B64: 8 | D64: 8 | F64: 807(4床) | G64: ベッド灯 | I64: 壁付け | K64: カバー | L64: プルスイッチ | M64: 3000 | N64: 上記と同じ器具 ヤマギワ K5005W | O64: コンパクト形蛍光灯 FPL18EX 【18W】 | P64: 21 | Q64: 1 | R64: 4 | S64: 4 | T64: 0 | U64: 0 | V64: 4 | X64: 4 | Y64: 4 | Z64: 0 | AA64: 0 | AB64: 12 | AC64: 30 | AD64: 30.24 | AE64: 84 | AF64: 0 | AH64: 【対象外】
A65: 49 | B65: 8 | D65: 8 | F65: 807(4床) | G65: ベッド灯 | I65: 壁付け | K65: カバー | L65: プルスイッチ | M65: 3000 | N65: 上記と同じ器具 ヤマギワ K5005W | O65: ナツメ球 5W (口金 ： E12) 【5W】 | P65: 5 | Q65: 1 | R65: 4 | S65: 4 | T65: 0 | U65: 0 | V65: 4 | X65: 4 | Y65: 4 | Z65: 0 | AA65: 0 | AB65: 12 | AC65: 30 | AD65: 7.2 | AE65: 20 | AF65: 0 | AH65: 【対象外】
A66: 50 | B66: 9 | D66: 8 | F66: 809(4床) | G66: ユニバーサルダウンライト | H66: φ150 | I66: 埋込 | J66: 処置灯 | M66: 3000 | O66: ハロゲンランプ（棒状） JD110V85W (口金：E11) 【85W】 | P66: 85 | Q66: 1 | R66: 4 | S66: 4 | T66: 0 | U66: 0 | V66: 4 | X66: 0 | Y66: 0 | Z66: 4 | AA66: 4 | AB66: 12 | AC66: 30 | AD66: 122.4 | AE66: 340 | AF66: 122.4 | AG66: 340 | AH66: 器具交換
A67: 51 | B67: 9 | D67: 8 | F67: 809(4床) | G67: ダウンライト | H67: φ150 | I67: 埋込 | K67: カバー | M67: 3000 | O67: コンパクト形蛍光灯 FDL13EX 【13W】 | P67: 16 | Q67: 1 | R67: 1 | S67: 1 | T67: 0 | U67: 0 | V67: 1 | X67: 0 | Y67: 0 | Z67: 1 | AA67: 1 | AB67: 12 | AC67: 30 | AD67: 5.76 | AE67: 16 | AF67: 5.76 | AG67: 16 | AH67: 器具交換
A68: 52 | B68: 9 | D68: 8 | F68: 809(4床) | G68: ブラケット | I68: 壁付け | K68: カバー | M68: 3000 | O68: 電球形蛍光灯 EFD15/12E (口金：E26) 【12W】 | P68: 12 | Q68: 1 | R68: 1 | S68: 1 | T68: 0 | U68: 0 | V68: 1 | X68: 1 | Y68: 1 | Z68: 0 | AA68: 0 | AB68: 12 | AC68: 30 | AD68: 4.32 | AE68: 12 | AF68: 0 | AH68: 【対象外】
A69: 53 | B69: 9 | D69: 8 | F69: 809(4床) | G69: ベッド灯 | I69: 壁付け | K69: カバー | M69: 3000 | N69: ヤマギワ K5005W スイッチプルではなく片切りスイッチ | O69: FPL55+FPL18+ナツメ球 | P69: 84 | Q69: 1 | R69: 4 | S69: 4 | T69: 0 | U69: 0 | V69: 4 | X69: 0 | Y69: 0 | Z69: 4 | AA69: 4 | AB69: 12 | AC69: 30 | AD69: 120.96 | AE69: 336 | AF69: 120.96 | AG69: 336 | AH69: 器具交換
A70: 54 | B70: 9 | D70: 8 | F70: 809(4床) | G70: ベッド灯 | I70: 壁付け | K70: カバー | L70: プルスイッチ | M70: 3000 | N70: 上記と同じ器具 ヤマギワ K5005W | O70: コンパクト形蛍光灯 FPL18EX 【18W】 | P70: 21 | Q70: 1 | R70: 4 | S70: 4 | T70: 0 | U70: 0 | V70: 4 | X70: 4 | Y70: 4 | Z70: 0 | AA70: 0 | AB70: 12 | AC70: 30 | AD70: 30.24 | AE70: 84 | AF70: 0 | AH70: 【対象外】
A71: 55 | B71: 9 | D71: 8 | F71: 809(4床) | G71: ベッド灯 | I71: 壁付け | K71: カバー | L71: プルスイッチ | M71: 3000 | N71: 上記と同じ器具 ヤマギワ K5005W | O71: ナツメ球 5W (口金 ： E12) 【5W】 | P71: 5 | Q71: 1 | R71: 4 | S71: 4 | T71: 0 | U71: 0 | V71: 4 | X71: 4 | Y71: 4 | Z71: 0 | AA71: 0 | AB71: 12 | AC71: 30 | AD71: 7.2 | AE71: 20 | AF71: 0 | AH71: 【対象外】
A72: 56 | B72: 10 | D72: 8 | F72: 812(4床) | G72: ユニバーサルダウンライト | H72: φ150 | I72: 埋込 | J72: 処置灯 | M72: 3000 | O72: ハロゲンランプ（棒状） JD110V85W (口金：E11) 【85W】 | P72: 85 | Q72: 1 | R72: 4 | S72: 4 | T72: 0 | U72: 0 | V72: 4 | X72: 0 | Y72: 0 | Z72: 4 | AA72: 4 | AB72: 12 | AC72: 30 | AD72: 122.4 | AE72: 340 | AF72: 122.4 | AG72: 340 | AH72: 器具交換
A73: 57 | B73: 10 | D73: 8 | F73: 812(4床) | G73: ダウンライト | H73: φ150 | I73: 埋込 | K73: カバー | M73: 3000 | O73: コンパクト形蛍光灯 FDL13EX 【13W】 | P73: 16 | Q73: 1 | R73: 1 | S73: 1 | T73: 0 | U73: 0 | V73: 1 | X73: 0 | Y73: 0 | Z73: 1 | AA73: 1 | AB73: 12 | AC73: 30 | AD73: 5.76 | AE73: 16 | AF73: 5.76 | AG73: 16 | AH73: 器具交換
A74: 58 | B74: 10 | D74: 8 | F74: 812(4床) | G74: ブラケット | I74: 壁付け | K74: カバー | M74: 3000 | O74: 電球形蛍光灯 EFD15/12E (口金：E26) 【12W】 | P74: 12 | Q74: 1 | R74: 1 | S74: 1 | T74: 0 | U74: 0 | V74: 1 | X74: 1 | Y74: 1 | Z74: 0 | AA74: 0 | AB74: 12 | AC74: 30 | AD74: 4.32 | AE74: 12 | AF74: 0 | AH74: 【対象外】
A75: 59 | B75: 10 | D75: 8 | F75: 812(4床) | G75: ベッド灯 | I75: 壁付け | K75: カバー | M75: 3000 | N75: ヤマギワ K5005W スイッチプルではなく片切りスイッチ | O75: FPL55+FPL18+ナツメ球 | P75: 84 | Q75: 1 | R75: 4 | S75: 4 | T75: 0 | U75: 0 | V75: 4 | X75: 0 | Y75: 0 | Z75: 4 | AA75: 4 | AB75: 12 | AC75: 30 | AD75: 120.96 | AE75: 336 | AF75: 120.96 | AG75: 336 | AH75: 器具交換
A76: 60 | B76: 10 | D76: 8 | F76: 812(4床) | G76: ベッド灯 | I76: 壁付け | K76: カバー | L76: プルスイッチ | M76: 3000 | N76: 上記と同じ器具 ヤマギワ K5005W | O76: コンパクト形蛍光灯 FPL18EX 【18W】 | P76: 21 | Q76: 1 | R76: 4 | S76: 4 | T76: 0 | U76: 0 | V76: 4 | X76: 4 | Y76: 4 | Z76: 0 | AA76: 0 | AB76: 12 | AC76: 30 | AD76: 30.24 | AE76: 84 | AF76: 0 | AH76: 【対象外】
A77: 61 | B77: 10 | D77: 8 | F77: 812(4床) | G77: ベッド灯 | I77: 壁付け | K77: カバー | L77: プルスイッチ | M77: 3000 | N77: 上記と同じ器具 ヤマギワ K5005W | O77: ナツメ球 5W (口金 ： E12) 【5W】 | P77: 5 | Q77: 1 | R77: 4 | S77: 4 | T77: 0 | U77: 0 | V77: 4 | X77: 4 | Y77: 4 | Z77: 0 | AA77: 0 | AB77: 12 | AC77: 30 | AD77: 7.2 | AE77: 20 | AF77: 0 | AH77: 【対象外】
A78: 62 | B78: 11 | D78: 8 | F78: 813(4床) | G78: ベッド灯 | I78: 壁付け | K78: カバー | M78: 3000 | N78: ヤマギワ K5005W スイッチプルではなく片切りスイッチ | O78: FPL55+FPL18+ナツメ球 | P78: 84 | Q78: 1 | R78: 4 | S78: 4 | T78: 0 | U78: 0 | V78: 4 | X78: 0 | Y78: 0 | Z78: 4 | AA78: 4 | AB78: 12 | AC78: 30 | AD78: 120.96 | AE78: 336 | AF78: 120.96 | AG78: 336 | AH78: 器具交換
A79: 63 | B79: 11 | D79: 8 | F79: 813(4床) | G79: ベッド灯 | I79: 壁付け | K79: カバー | L79: プルスイッチ | M79: 3000 | N79: 上記と同じ器具 ヤマギワ K5005W | O79: コンパクト形蛍光灯 FPL18EX 【18W】 | P79: 21 | Q79: 1 | R79: 4 | S79: 4 | T79: 0 | U79: 0 | V79: 4 | X79: 4 | Y79: 4 | Z79: 0 | AA79: 0 | AB79: 12 | AC79: 30 | AD79: 30.24 | AE79: 84 | AF79: 0 | AH79: 【対象外】
A80: 64 | B80: 11 | D80: 8 | F80: 813(4床) | G80: ベッド灯 | I80: 壁付け | K80: カバー | L80: プルスイッチ | M80: 3000 | N80: 上記と同じ器具 ヤマギワ K5005W | O80: ナツメ球 5W (口金 ： E12) 【5W】 | P80: 5 | Q80: 1 | R80: 4 | S80: 4 | T80: 0 | U80: 0 | V80: 4 | X80: 4 | Y80: 4 | Z80: 0 | AA80: 0 | AB80: 12 | AC80: 30 | AD80: 7.2 | AE80: 20 | AF80: 0 | AH80: 【対象外】
A81: =IF(COUNTA(B81:O81)=0,"",ROW()-16) -> 65 | B81: 11 | D81: 8 | F81: 813(4床) | G81: ユニバーサルダウンライト | H81: φ150 | I81: 埋込 | J81: 処置灯 | M81: 3000 | O81: ハロゲンランプ（棒状） JD110V85W (口金：E11) 【85W】 | P81: 85 | Q81: 1 | R81: 4 | S81: =IF(R81="","",Q81*R81) -> 4 | T81: 0 | U81: 0 | V81: =IF(S81="","",S81-T81) -> 4 | X81: =IF(O81="","",IF(OR(AH81="【対象外】",AH81="【LED済】"),R81,IF(Y81>0,Y81/Q81,0))) -> 0 | Y81: =IF(O81="","",IF(OR(AH81="管球交換 【間引き対象外】",AH81="器具交換 【間引き対象外】"),T81,IF(OR(AH81="【対象外】",AH81="【LED済】"),S81,0))) -> 0 | Z81: =IF(R81="","",R81-X81) -> 4 | AA81: =IF(S81="","",S81-Y81) -> 4 | AB81: 12 | AC81: 30 | AD81: =IF(O81="","",IF(V81="","",P81*V81*AB81*AC81/1000)) -> 122.4 | AE81: =IF(O81="","",IF(V81="","",P81*V81)) -> 340 | AF81: =IF(O81="","",IF(AA81="","",P81*AA81*AB81*AC81/1000)) -> 122.4 | AG81: =IF(O81="","",IF(AA81="","",IF(AA81=0,"",P81*AA81))) -> 340 | AH81: 器具交換
A82: 66 | B82: 11 | D82: 8 | F82: 813(4床) | G82: ダウンライト | H82: φ150 | I82: 埋込 | K82: カバー | M82: 3000 | O82: コンパクト形蛍光灯 FDL13EX 【13W】 | P82: 16 | Q82: 1 | R82: 1 | S82: 1 | T82: 0 | U82: 0 | V82: 1 | X82: 0 | Y82: 0 | Z82: 1 | AA82: 1 | AB82: 12 | AC82: 30 | AD82: 5.76 | AE82: 16 | AF82: 5.76 | AG82: 16 | AH82: 器具交換
A83: 67 | B83: 11 | D83: 8 | F83: 813(4床) | G83: ブラケット | I83: 壁付け | K83: カバー | M83: 3000 | O83: 電球形蛍光灯 EFD15/12E (口金：E26) 【12W】 | P83: 12 | Q83: 1 | R83: 1 | S83: 1 | T83: 0 | U83: 0 | V83: 1 | X83: 1 | Y83: 1 | Z83: 0 | AA83: 0 | AB83: 12 | AC83: 30 | AD83: 4.32 | AE83: 12 | AF83: 0 | AH83: 【対象外】
A84: 68 | B84: 12 | D84: 8 | F84: 810(1床) | G84: ベッド灯 | I84: 壁付け | K84: カバー | L84: プルスイッチ | M84: 3000 | O84: FPL55+FPL18+ナツメ球 | P84: 84 | Q84: 1 | R84: 1 | S84: 1 | T84: 0 | U84: 0 | V84: 1 | X84: 0 | Y84: 0 | Z84: 1 | AA84: 1 | AB84: 12 | AC84: 30 | AD84: 30.24 | AE84: 84 | AF84: 30.24 | AG84: 84 | AH84: 器具交換
A85: 69 | B85: 12 | D85: 8 | F85: 810(1床) | G85: ベッド灯 | I85: 壁付け | K85: カバー | L85: プルスイッチ | M85: 3000 | O85: コンパクト形蛍光灯 FPL18EX 【18W】 | P85: 21 | Q85: 1 | R85: 1 | S85: 1 | T85: 0 | U85: 0 | V85: 1 | X85: 1 | Y85: 1 | Z85: 0 | AA85: 0 | AB85: 12 | AC85: 30 | AD85: 7.56 | AE85: 21 | AF85: 0 | AH85: 【対象外】
A86: 70 | B86: 12 | D86: 8 | F86: 810(1床) | G86: ベッド灯 | I86: 壁付け | K86: カバー | L86: プルスイッチ | M86: 3000 | O86: ナツメ球 5W (口金 ： E12) 【5W】 | P86: 5 | Q86: 1 | R86: 1 | S86: 1 | T86: 0 | U86: 0 | V86: 1 | X86: 1 | Y86: 1 | Z86: 0 | AA86: 0 | AB86: 12 | AC86: 30 | AD86: 1.8 | AE86: 5 | AF86: 0 | AH86: 【対象外】
A87: 71 | B87: 12 | D87: 8 | F87: 810(1床) | G87: ユニバーサルダウンライト | H87: φ150 | I87: 埋込 | J87: 処置灯 | M87: 3000 | O87: ハロゲンランプ（棒状） JD110V85W (口金：E11) 【85W】 | P87: 85 | Q87: 1 | R87: 1 | S87: 1 | T87: 0 | U87: 0 | V87: 1 | X87: 0 | Y87: 0 | Z87: 1 | AA87: 1 | AB87: 12 | AC87: 30 | AD87: 30.6 | AE87: 85 | AF87: 30.6 | AG87: 85 | AH87: 器具交換
A88: 72 | B88: 12 | D88: 8 | F88: 810(1床) | G88: ダウンライト | H88: φ150 | I88: 埋込 | K88: 乳白カバー | M88: 3000 | O88: コンパクト形蛍光灯 FDL13EX 【13W】 | P88: 16 | Q88: 1 | R88: 1 | S88: 1 | T88: 0 | U88: 0 | V88: 1 | X88: 0 | Y88: 0 | Z88: 1 | AA88: 1 | AB88: 12 | AC88: 30 | AD88: 5.76 | AE88: 16 | AF88: 5.76 | AG88: 16 | AH88: 器具交換
A89: 73 | B89: 12 | D89: 8 | F89: 810(1床) | G89: ブラケット | I89: 壁付け | K89: 防水カバー | M89: 3000 | N89: E26 | O89: 【管球LED済】 | P89: 0 | Q89: 1 | R89: 2 | S89: 2 | T89: 0 | U89: 0 | V89: 2 | W89: =V89 -> 2 | X89: 2 | Y89: 2 | Z89: 0 | AA89: 0 | AB89: 12 | AC89: 30 | AD89: 0 | AE89: 0 | AF89: 0 | AH89: 【LED済】
A90: 74 | B90: 12 | D90: 8 | F90: 810(1床) | G90: ブラケット | I90: 壁付け | K90: カバー | M90: 3000 | O90: 電球形蛍光灯 EFD15/12E (口金：E26) 【12W】 | P90: 12 | Q90: 1 | R90: 1 | S90: 1 | T90: 0 | U90: 0 | V90: 1 | X90: 1 | Y90: 1 | Z90: 0 | AA90: 0 | AB90: 12 | AC90: 30 | AD90: 4.32 | AE90: 12 | AF90: 0 | AH90: 【対象外】
A91: 75 | B91: 13 | D91: 8 | F91: 811(1床) | G91: ベッド灯 | I91: 壁付け | K91: カバー | M91: 3000 | O91: FPL55+FPL18+ナツメ球 | P91: 84 | Q91: 1 | R91: 1 | S91: 1 | T91: 0 | U91: 0 | V91: 1 | X91: 0 | Y91: 0 | Z91: 1 | AA91: 1 | AB91: 12 | AC91: 30 | AD91: 30.24 | AE91: 84 | AF91: 30.24 | AG91: 84 | AH91: 器具交換
A92: 76 | B92: 13 | D92: 8 | F92: 811(1床) | G92: ベッド灯 | I92: 壁付け | K92: カバー | L92: プルスイッチ | M92: 3000 | O92: コンパクト形蛍光灯 FPL18EX 【18W】 | P92: 21 | Q92: 1 | R92: 1 | S92: 1 | T92: 0 | U92: 0 | V92: 1 | X92: 1 | Y92: 1 | Z92: 0 | AA92: 0 | AB92: 12 | AC92: 30 | AD92: 7.56 | AE92: 21 | AF92: 0 | AH92: 【対象外】
A93: 77 | B93: 13 | D93: 8 | F93: 811(1床) | G93: ベッド灯 | I93: 壁付け | K93: カバー | L93: プルスイッチ | M93: 3000 | O93: ナツメ球 5W (口金 ： E12) 【5W】 | P93: 5 | Q93: 1 | R93: 1 | S93: 1 | T93: 0 | U93: 0 | V93: 1 | X93: 1 | Y93: 1 | Z93: 0 | AA93: 0 | AB93: 12 | AC93: 30 | AD93: 1.8 | AE93: 5 | AF93: 0 | AH93: 【対象外】
A94: 78 | B94: 13 | D94: 8 | F94: 811(1床) | G94: ユニバーサルダウンライト | H94: φ150 | I94: 埋込 | J94: 処置灯 | M94: 3000 | O94: ハロゲンランプ（棒状） JD110V85W (口金：E11) 【85W】 | P94: 85 | Q94: 1 | R94: 1 | S94: 1 | T94: 0 | U94: 0 | V94: 1 | X94: 0 | Y94: 0 | Z94: 1 | AA94: 1 | AB94: 12 | AC94: 30 | AD94: 30.6 | AE94: 85 | AF94: 30.6 | AG94: 85 | AH94: 器具交換
A95: 79 | B95: 13 | D95: 8 | F95: 811(1床) | G95: ダウンライト | H95: φ150 | I95: 埋込 | K95: 乳白カバー | M95: 3000 | O95: コンパクト形蛍光灯 FDL13EX 【13W】 | P95: 16 | Q95: 1 | R95: 1 | S95: 1 | T95: 0 | U95: 0 | V95: 1 | X95: 0 | Y95: 0 | Z95: 1 | AA95: 1 | AB95: 12 | AC95: 30 | AD95: 5.76 | AE95: 16 | AF95: 5.76 | AG95: 16 | AH95: 器具交換
A96: 80 | B96: 13 | D96: 8 | F96: 811(1床) | G96: ブラケット | I96: 壁付け | K96: 防水カバー | M96: 3000 | N96: E26 | O96: 【管球LED済】 | P96: 0 | Q96: 1 | R96: 2 | S96: 2 | T96: 0 | U96: 0 | V96: 2 | W96: =V96 -> 2 | X96: 2 | Y96: 2 | Z96: 0 | AA96: 0 | AB96: 12 | AC96: 30 | AD96: 0 | AE96: 0 | AF96: 0 | AH96: 【LED済】
A97: 81 | B97: 13 | D97: 8 | F97: 811(1床) | G97: ブラケット | I97: 壁付け | K97: カバー | M97: 3000 | O97: 電球形蛍光灯 EFD15/12E (口金：E26) 【12W】 | P97: 12 | Q97: 1 | R97: 1 | S97: 1 | T97: 0 | U97: 0 | V97: 1 | X97: 1 | Y97: 1 | Z97: 0 | AA97: 0 | AB97: 12 | AC97: 30 | AD97: 4.32 | AE97: 12 | AF97: 0 | AH97: 【対象外】
A98: 82 | B98: 14 | D98: 8 | F98: 814(1床) | G98: ベッド灯 | K98: プルスイッチ | M98: 3000 | N98: LEDB-30902PWW-LD1 | O98: 【器具LED済】 | P98: 0 | Q98: 1 | R98: 1 | S98: 1 | T98: 0 | U98: 0 | V98: 1 | W98: =V98 -> 1 | X98: 1 | Y98: 1 | Z98: 0 | AA98: 0 | AB98: 12 | AC98: 30 | AD98: 0 | AE98: 0 | AF98: 0 | AH98: 【LED済】
A99: 83 | B99: 14 | D99: 8 | F99: 814(2床) | G99: ユニバーサルダウンライト | H99: φ150 | I99: 埋込 | J99: 処置灯 | M99: 3000 | O99: ハロゲンランプ（棒状） JD110V85W (口金：E11) 【85W】 | P99: 85 | Q99: 1 | R99: 1 | S99: 1 | T99: 0 | U99: 0 | V99: 1 | X99: 0 | Y99: 0 | Z99: 1 | AA99: 1 | AB99: 12 | AC99: 30 | AD99: 30.6 | AE99: 85 | AF99: 30.6 | AG99: 85 | AH99: 器具交換
A100: 84 | B100: 14 | D100: 8 | F100: 814(3床) | G100: ダウンライト | H100: φ150 | I100: 埋込 | K100: 乳白カバー | M100: 3000 | O100: コンパクト形蛍光灯 FDL13EX 【13W】 | P100: 16 | Q100: 1 | R100: 2 | S100: 2 | T100: 0 | U100: 0 | V100: 2 | X100: 0 | Y100: 0 | Z100: 2 | AA100: 2 | AB100: 12 | AC100: 30 | AD100: 11.52 | AE100: 32 | AF100: 11.52 | AG100: 32 | AH100: 器具交換
A101: 85 | B101: 14 | D101: 8 | F101: 814(4床) | G101: ブラケット | I101: 壁付け | K101: 乳白カバー | M101: 3000 | O101: 電球形蛍光灯 EFD15/12E (口金：E26) 【12W】 | P101: 12 | Q101: 1 | R101: 1 | S101: 1 | T101: 0 | U101: 0 | V101: 1 | X101: 1 | Y101: 1 | Z101: 0 | AA101: 0 | AB101: 12 | AC101: 30 | AD101: 4.32 | AE101: 12 | AF101: 0 | AH101: 【対象外】
A102: 86 | B102: 14 | D102: 8 | F102: 814(5床) | G102: ブラケット | I102: 壁付け | K102: 防水カバー | M102: 3000 | O102: 電球形蛍光灯 EFD15/12E (口金：E26) 【12W】 | P102: 12 | Q102: 1 | R102: 2 | S102: 2 | T102: 0 | U102: 0 | V102: 2 | X102: 2 | Y102: 2 | Z102: 0 | AA102: 0 | AB102: 12 | AC102: 30 | AD102: 8.64 | AE102: 24 | AF102: 0 | AH102: 【対象外】
A103: 87 | B103: 15 | D103: 8 | F103: 815(1床) | G103: ベッド灯 | K103: プルスイッチ | M103: 3000 | N103: LEDB-30902PWW-LD1 | O103: 【器具LED済】 | P103: 0 | Q103: 1 | R103: 1 | S103: 1 | T103: 0 | U103: 0 | V103: 1 | W103: =V103 -> 1 | X103: 1 | Y103: 1 | Z103: 0 | AA103: 0 | AB103: 12 | AC103: 30 | AD103: 0 | AE103: 0 | AF103: 0 | AH103: 【LED済】
A104: 88 | B104: 15 | D104: 8 | F104: 815(1床) | G104: ユニバーサルダウンライト | H104: φ150 | I104: 埋込 | J104: 処置灯 | M104: 3000 | O104: ハロゲンランプ（棒状） JD110V85W (口金：E11) 【85W】 | P104: 85 | Q104: 1 | R104: 1 | S104: 1 | T104: 0 | U104: 0 | V104: 1 | X104: 0 | Y104: 0 | Z104: 1 | AA104: 1 | AB104: 12 | AC104: 30 | AD104: 30.6 | AE104: 85 | AF104: 30.6 | AG104: 85 | AH104: 器具交換
A105: 89 | B105: 15 | D105: 8 | F105: 815(1床) | G105: ダウンライト | H105: φ150 | I105: 埋込 | K105: 乳白カバー | M105: 3000 | O105: コンパクト形蛍光灯 FDL13EX 【13W】 | P105: 16 | Q105: 1 | R105: 2 | S105: 2 | T105: 0 | U105: 0 | V105: 2 | X105: 0 | Y105: 0 | Z105: 2 | AA105: 2 | AB105: 12 | AC105: 30 | AD105: 11.52 | AE105: 32 | AF105: 11.52 | AG105: 32 | AH105: 器具交換
A106: 90 | B106: 15 | D106: 8 | F106: 815(1床) | G106: ブラケット | I106: 壁付け | K106: 乳白カバー | M106: 3000 | O106: 電球形蛍光灯 EFD15/12E (口金：E26) 【12W】 | P106: 12 | Q106: 1 | R106: 1 | S106: 1 | T106: 0 | U106: 0 | V106: 1 | X106: 1 | Y106: 1 | Z106: 0 | AA106: 0 | AB106: 12 | AC106: 30 | AD106: 4.32 | AE106: 12 | AF106: 0 | AH106: 【対象外】
A107: 91 | B107: 15 | D107: 8 | F107: 815(1床) | G107: ブラケット | I107: 壁付け | K107: 防水カバー | M107: 3000 | O107: 電球形蛍光灯 EFD15/12E (口金：E26) 【12W】 | P107: 12 | Q107: 1 | R107: 2 | S107: 2 | T107: 0 | U107: 0 | V107: 2 | X107: 2 | Y107: 2 | Z107: 0 | AA107: 0 | AB107: 12 | AC107: 30 | AD107: 8.64 | AE107: 24 | AF107: 0 | AH107: 【対象外】
A108: 92 | B108: 16 | D108: 8 | F108: 816(1床) | G108: ベッド灯 | K108: プルスイッチ | M108: 3000 | N108: LEDB-30902PWW-LD1 | O108: 【器具LED済】 | P108: 0 | Q108: 1 | R108: 1 | S108: 1 | T108: 0 | U108: 0 | V108: 1 | W108: =V108 -> 1 | X108: 1 | Y108: 1 | Z108: 0 | AA108: 0 | AB108: 12 | AC108: 30 | AD108: 0 | AE108: 0 | AF108: 0 | AH108: 【LED済】
A109: 93 | B109: 16 | D109: 8 | F109: 816(1床) | G109: ユニバーサルダウンライト | H109: φ150 | I109: 埋込 | J109: 処置灯 | M109: 3000 | O109: ハロゲンランプ（棒状） JD110V85W (口金：E11) 【85W】 | P109: 85 | Q109: 1 | R109: 1 | S109: 1 | T109: 0 | U109: 0 | V109: 1 | X109: 0 | Y109: 0 | Z109: 1 | AA109: 1 | AB109: 12 | AC109: 30 | AD109: 30.6 | AE109: 85 | AF109: 30.6 | AG109: 85 | AH109: 器具交換
A110: 94 | B110: 16 | D110: 8 | F110: 816(1床) | G110: ダウンライト | H110: φ150 | I110: 埋込 | K110: 乳白カバー | M110: 3000 | O110: コンパクト形蛍光灯 FDL13EX 【13W】 | P110: 16 | Q110: 1 | R110: 2 | S110: 2 | T110: 0 | U110: 0 | V110: 2 | X110: 0 | Y110: 0 | Z110: 2 | AA110: 2 | AB110: 12 | AC110: 30 | AD110: 11.52 | AE110: 32 | AF110: 11.52 | AG110: 32 | AH110: 器具交換
A111: 95 | B111: 16 | D111: 8 | F111: 816(1床) | G111: ブラケット | I111: 壁付け | K111: 乳白カバー | M111: 3000 | O111: 電球形蛍光灯 EFD15/12E (口金：E26) 【12W】 | P111: 12 | Q111: 1 | R111: 1 | S111: 1 | T111: 0 | U111: 0 | V111: 1 | X111: 1 | Y111: 1 | Z111: 0 | AA111: 0 | AB111: 12 | AC111: 30 | AD111: 4.32 | AE111: 12 | AF111: 0 | AH111: 【対象外】
A112: 96 | B112: 16 | D112: 8 | F112: 816(1床) | G112: ブラケット | I112: 壁付け | K112: 防水カバー | M112: 3000 | O112: 電球形蛍光灯 EFD15/12E (口金：E26) 【12W】 | P112: 12 | Q112: 1 | R112: 2 | S112: 2 | T112: 0 | U112: 0 | V112: 2 | X112: 2 | Y112: 2 | Z112: 0 | AA112: 0 | AB112: 12 | AC112: 30 | AD112: 8.64 | AE112: 24 | AF112: 0 | AH112: 【対象外】
A113: 97 | B113: 17 | D113: 8 | F113: 817(1床) | G113: ベッド灯 | K113: プルスイッチ | M113: 3000 | N113: LEDB-30902PWW-LD1 | O113: 【器具LED済】 | P113: 0 | Q113: 1 | R113: 1 | S113: 1 | T113: 0 | U113: 0 | V113: 1 | W113: =V113 -> 1 | X113: 1 | Y113: 1 | Z113: 0 | AA113: 0 | AB113: 12 | AC113: 30 | AD113: 0 | AE113: 0 | AF113: 0 | AH113: 【LED済】
A114: 98 | B114: 17 | D114: 8 | F114: 817(1床) | G114: ユニバーサルダウンライト | H114: φ150 | I114: 埋込 | J114: 処置灯 | M114: 3000 | O114: ハロゲンランプ（棒状） JD110V85W (口金：E11) 【85W】 | P114: 85 | Q114: 1 | R114: 1 | S114: 1 | T114: 0 | U114: 0 | V114: 1 | X114: 0 | Y114: 0 | Z114: 1 | AA114: 1 | AB114: 12 | AC114: 30 | AD114: 30.6 | AE114: 85 | AF114: 30.6 | AG114: 85 | AH114: 器具交換
A115: 99 | B115: 17 | D115: 8 | F115: 817(1床) | G115: ダウンライト | H115: φ150 | I115: 埋込 | K115: 乳白カバー | M115: 3000 | O115: コンパクト形蛍光灯 FDL13EX 【13W】 | P115: 16 | Q115: 1 | R115: 2 | S115: 2 | T115: 0 | U115: 0 | V115: 2 | X115: 0 | Y115: 0 | Z115: 2 | AA115: 2 | AB115: 12 | AC115: 30 | AD115: 11.52 | AE115: 32 | AF115: 11.52 | AG115: 32 | AH115: 器具交換
A116: 100 | B116: 17 | D116: 8 | F116: 817(1床) | G116: ブラケット | I116: 壁付け | K116: 乳白カバー | M116: 3000 | O116: 電球形蛍光灯 EFD15/12E (口金：E26) 【12W】 | P116: 12 | Q116: 1 | R116: 1 | S116: 1 | T116: 0 | U116: 0 | V116: 1 | X116: 1 | Y116: 1 | Z116: 0 | AA116: 0 | AB116: 12 | AC116: 30 | AD116: 4.32 | AE116: 12 | AF116: 0 | AH116: 【対象外】
A117: 101 | B117: 17 | D117: 8 | F117: 817(1床) | G117: ブラケット | I117: 壁付け | K117: 防水カバー | M117: 3000 | O117: 電球形蛍光灯 EFD15/12E (口金：E26) 【12W】 | P117: 12 | Q117: 1 | R117: 2 | S117: 2 | T117: 0 | U117: 0 | V117: 2 | X117: 2 | Y117: 2 | Z117: 0 | AA117: 0 | AB117: 12 | AC117: 30 | AD117: 8.64 | AE117: 24 | AF117: 0 | AH117: 【対象外】
A118: 102 | B118: 18 | D118: 8 | F118: 818(1床) | G118: ベッド灯 | K118: プルスイッチ | M118: 3000 | N118: LEDB-30902PWW-LD1 | O118: 【器具LED済】 | P118: 0 | Q118: 1 | R118: 1 | S118: 1 | T118: 0 | U118: 0 | V118: 1 | W118: =V118 -> 1 | X118: 1 | Y118: 1 | Z118: 0 | AA118: 0 | AB118: 12 | AC118: 30 | AD118: 0 | AE118: 0 | AF118: 0 | AH118: 【LED済】
A119: 103 | B119: 18 | D119: 8 | F119: 818(1床) | G119: ユニバーサルダウンライト | H119: φ150 | I119: 埋込 | J119: 処置灯 | M119: 3000 | O119: ハロゲンランプ（棒状） JD110V85W (口金：E11) 【85W】 | P119: 85 | Q119: 1 | R119: 1 | S119: 1 | T119: 0 | U119: 0 | V119: 1 | X119: 0 | Y119: 0 | Z119: 1 | AA119: 1 | AB119: 12 | AC119: 30 | AD119: 30.6 | AE119: 85 | AF119: 30.6 | AG119: 85 | AH119: 器具交換
A120: 104 | B120: 18 | D120: 8 | F120: 818(1床) | G120: ダウンライト | H120: φ150 | I120: 埋込 | K120: 乳白カバー | M120: 3000 | O120: コンパクト形蛍光灯 FDL13EX 【13W】 | P120: 16 | Q120: 1 | R120: 2 | S120: 2 | T120: 0 | U120: 0 | V120: 2 | X120: 0 | Y120: 0 | Z120: 2 | AA120: 2 | AB120: 12 | AC120: 30 | AD120: 11.52 | AE120: 32 | AF120: 11.52 | AG120: 32 | AH120: 器具交換
A121: 105 | B121: 18 | D121: 8 | F121: 818(1床) | G121: ブラケット | I121: 壁付け | K121: 乳白カバー | M121: 3000 | O121: 電球形蛍光灯 EFD15/12E (口金：E26) 【12W】 | P121: 12 | Q121: 1 | R121: 1 | S121: 1 | T121: 0 | U121: 0 | V121: 1 | X121: 1 | Y121: 1 | Z121: 0 | AA121: 0 | AB121: 12 | AC121: 30 | AD121: 4.32 | AE121: 12 | AF121: 0 | AH121: 【対象外】
A122: 106 | B122: 18 | D122: 8 | F122: 818(1床) | G122: ブラケット | I122: 壁付け | K122: 防水カバー | M122: 3000 | O122: 電球形蛍光灯 EFD15/12E (口金：E26) 【12W】 | P122: 12 | Q122: 1 | R122: 2 | S122: 2 | T122: 0 | U122: 0 | V122: 2 | X122: 2 | Y122: 2 | Z122: 0 | AA122: 0 | AB122: 12 | AC122: 30 | AD122: 8.64 | AE122: 24 | AF122: 0 | AH122: 【対象外】
A123: 107 | B123: 19 | D123: 8 | F123: 819(4床) | G123: ベッド灯 | I123: 壁付け | K123: プルスイッチ | M123: 3000 | N123: LEDB-30902PWW-LD1 | O123: 【器具LED済】 | P123: 0 | Q123: 1 | R123: 4 | S123: 4 | T123: 0 | U123: 0 | V123: 4 | W123: =V123 -> 4 | X123: 4 | Y123: 4 | Z123: 0 | AA123: 0 | AB123: 12 | AC123: 30 | AD123: 0 | AE123: 0 | AF123: 0 | AH123: 【LED済】
A124: 108 | B124: 19 | D124: 8 | F124: 819(4床) | G124: ユニバーサルダウンライト | H124: φ150 | I124: 埋込 | J124: 処置灯 | M124: 3000 | O124: ハロゲンランプ（棒状） JD110V85W (口金：E11) 【85W】 | P124: 85 | Q124: 1 | R124: 4 | S124: 4 | T124: 0 | U124: 0 | V124: 4 | X124: 0 | Y124: 0 | Z124: 4 | AA124: 4 | AB124: 12 | AC124: 30 | AD124: 122.4 | AE124: 340 | AF124: 122.4 | AG124: 340 | AH124: 器具交換
A125: 109 | B125: 19 | D125: 8 | F125: 819(4床) | G125: ダウンライト | H125: φ150 | I125: 埋込 | M125: 3000 | O125: コンパクト形蛍光灯 FDL13EX 【13W】 | P125: 16 | Q125: 1 | R125: 1 | S125: 1 | T125: 0 | U125: 0 | V125: 1 | X125: 0 | Y125: 0 | Z125: 1 | AA125: 1 | AB125: 12 | AC125: 30 | AD125: 5.76 | AE125: 16 | AF125: 5.76 | AG125: 16 | AH125: 器具交換
A126: 110 | B126: 19 | D126: 8 | F126: 819(4床) | G126: ブラケット | I126: 壁付け | M126: 3000 | O126: 電球形蛍光灯 EFD15/12E (口金：E26) 【12W】 | P126: 12 | Q126: 1 | R126: 1 | S126: 1 | T126: 0 | U126: 0 | V126: 1 | X126: 1 | Y126: 1 | Z126: 0 | AA126: 0 | AB126: 12 | AC126: 30 | AD126: 4.32 | AE126: 12 | AF126: 0 | AH126: 【対象外】
A127: 111 | B127: 19 | D127: 8 | F127: 819(4床) | G127: ダウンライト | H127: φ150 | I127: 埋込 | M127: 3000 | O127: 電球形蛍光灯 EFD15/12E (口金：E26) 【12W】 | P127: 12 | Q127: 1 | R127: 1 | S127: 1 | T127: 0 | U127: 0 | V127: 1 | X127: 1 | Y127: 1 | Z127: 0 | AA127: 0 | AB127: 12 | AC127: 30 | AD127: 4.32 | AE127: 12 | AF127: 0 | AH127: 【対象外】
A128: 112 | B128: 20 | D128: 8 | F128: 820(4床) | G128: ベッド灯 | I128: 壁付け | K128: プルスイッチ | M128: 3000 | N128: LEDB-30902PWW-LD1 | O128: 【器具LED済】 | P128: 0 | Q128: 1 | R128: 4 | S128: 4 | T128: 0 | U128: 0 | V128: 4 | W128: =V128 -> 4 | X128: 4 | Y128: 4 | Z128: 0 | AA128: 0 | AB128: 12 | AC128: 30 | AD128: 0 | AE128: 0 | AF128: 0 | AH128: 【LED済】
A129: 113 | B129: 20 | D129: 8 | F129: 820(4床) | G129: ユニバーサルダウンライト | H129: φ150 | I129: 埋込 | J129: 処置灯 | M129: 3000 | O129: ハロゲンランプ（棒状） JD110V85W (口金：E11) 【85W】 | P129: 85 | Q129: 1 | R129: 4 | S129: 4 | T129: 0 | U129: 0 | V129: 4 | X129: 0 | Y129: 0 | Z129: 4 | AA129: 4 | AB129: 12 | AC129: 30 | AD129: 122.4 | AE129: 340 | AF129: 122.4 | AG129: 340 | AH129: 器具交換
A130: 114 | B130: 20 | D130: 8 | F130: 820(4床) | G130: ダウンライト | H130: φ150 | I130: 埋込 | M130: 3000 | O130: コンパクト形蛍光灯 FDL13EX 【13W】 | P130: 16 | Q130: 1 | R130: 1 | S130: 1 | T130: 0 | U130: 0 | V130: 1 | X130: 0 | Y130: 0 | Z130: 1 | AA130: 1 | AB130: 12 | AC130: 30 | AD130: 5.76 | AE130: 16 | AF130: 5.76 | AG130: 16 | AH130: 器具交換
A131: 115 | B131: 20 | D131: 8 | F131: 820(4床) | G131: ブラケット | I131: 壁付け | M131: 3000 | O131: 電球形蛍光灯 EFD15/12E (口金：E26) 【12W】 | P131: 12 | Q131: 1 | R131: 1 | S131: 1 | T131: 0 | U131: 0 | V131: 1 | X131: 1 | Y131: 1 | Z131: 0 | AA131: 0 | AB131: 12 | AC131: 30 | AD131: 4.32 | AE131: 12 | AF131: 0 | AH131: 【対象外】
A132: 116 | B132: 20 | D132: 8 | F132: 820(4床) | G132: ダウンライト | H132: φ150 | I132: 埋込 | M132: 3000 | O132: 電球形蛍光灯 EFD15/12E (口金：E26) 【12W】 | P132: 12 | Q132: 1 | R132: 1 | S132: 1 | T132: 0 | U132: 0 | V132: 1 | X132: 1 | Y132: 1 | Z132: 0 | AA132: 0 | AB132: 12 | AC132: 30 | AD132: 4.32 | AE132: 12 | AF132: 0 | AH132: 【対象外】
A133: 117 | B133: 21 | D133: 8 | F133: 821(4床) | G133: ベッド灯 | I133: 壁付け | K133: プルスイッチ | M133: 3000 | N133: LED済は2台のみ | O133: 【器具LED済】 | P133: 0 | Q133: 1 | R133: 2 | S133: 2 | T133: 0 | U133: 0 | V133: 2 | W133: =V133 -> 2 | X133: 2 | Y133: 2 | Z133: 0 | AA133: 0 | AB133: 12 | AC133: 30 | AD133: 0 | AE133: 0 | AF133: 0 | AH133: 【LED済】
A134: 118 | B134: 21 | D134: 8 | F134: 821(4床) | G134: ベッド灯 | I134: 壁付け | K134: カバー | M134: 3000 | N134: ヤマギワ K5005W スイッチプルではなく片切りスイッチ | O134: FPL55+FPL18+ナツメ球 | P134: 84 | Q134: 1 | R134: 2 | S134: 2 | T134: 0 | U134: 0 | V134: 2 | X134: 0 | Y134: 0 | Z134: 2 | AA134: 2 | AB134: 12 | AC134: 30 | AD134: 60.48 | AE134: 168 | AF134: 60.48 | AG134: 168 | AH134: 器具交換
A135: 119 | B135: 21 | D135: 8 | F135: 821(4床) | G135: ベッド灯 | I135: 壁付け | K135: カバー | L135: プルスイッチ | M135: 3000 | N135: 上記と同じ器具 ヤマギワ K5005W | O135: コンパクト形蛍光灯 FPL18EX 【18W】 | P135: 21 | Q135: 1 | R135: 2 | S135: 2 | T135: 0 | U135: 0 | V135: 2 | X135: 2 | Y135: 2 | Z135: 0 | AA135: 0 | AB135: 12 | AC135: 30 | AD135: 15.12 | AE135: 42 | AF135: 0 | AH135: 【対象外】
A136: 120 | B136: 21 | D136: 8 | F136: 821(4床) | G136: ベッド灯 | I136: 壁付け | K136: カバー | L136: プルスイッチ | M136: 3000 | N136: 上記と同じ器具 ヤマギワ K5005W | O136: ナツメ球 5W (口金 ： E12) 【5W】 | P136: 5 | Q136: 1 | R136: 2 | S136: 2 | T136: 0 | U136: 0 | V136: 2 | X136: 2 | Y136: 2 | Z136: 0 | AA136: 0 | AB136: 12 | AC136: 30 | AD136: 3.6 | AE136: 10 | AF136: 0 | AH136: 【対象外】
A137: 121 | B137: 21 | D137: 8 | F137: 821(4床) | G137: ユニバーサルダウンライト | H137: φ150 | I137: 埋込 | J137: 処置灯 | M137: 3000 | O137: ハロゲンランプ（棒状） JD110V85W (口金：E11) 【85W】 | P137: 85 | Q137: 1 | R137: 4 | S137: 4 | T137: 0 | U137: 0 | V137: 4 | X137: 0 | Y137: 0 | Z137: 4 | AA137: 4 | AB137: 12 | AC137: 30 | AD137: 122.4 | AE137: 340 | AF137: 122.4 | AG137: 340 | AH137: 器具交換
A138: 122 | B138: 21 | D138: 8 | F138: 821(4床) | G138: ダウンライト | H138: φ150 | I138: 埋込 | M138: 3000 | O138: コンパクト形蛍光灯 FDL13EX 【13W】 | P138: 16 | Q138: 1 | R138: 1 | S138: 1 | T138: 0 | U138: 0 | V138: 1 | X138: 0 | Y138: 0 | Z138: 1 | AA138: 1 | AB138: 12 | AC138: 30 | AD138: 5.76 | AE138: 16 | AF138: 5.76 | AG138: 16 | AH138: 器具交換
A139: 123 | B139: 21 | D139: 8 | F139: 821(4床) | G139: ブラケット | I139: 壁付け | M139: 3000 | O139: 電球形蛍光灯 EFD15/12E (口金：E26) 【12W】 | P139: 12 | Q139: 1 | R139: 1 | S139: 1 | T139: 0 | U139: 0 | V139: 1 | X139: 1 | Y139: 1 | Z139: 0 | AA139: 0 | AB139: 12 | AC139: 30 | AD139: 4.32 | AE139: 12 | AF139: 0 | AH139: 【対象外】
A140: 124 | B140: 21 | D140: 8 | F140: 821(4床) | G140: ダウンライト | H140: φ150 | I140: 埋込 | M140: 3000 | O140: 電球形蛍光灯 EFD15/12E (口金：E26) 【12W】 | P140: 12 | Q140: 1 | R140: 1 | S140: 1 | T140: 0 | U140: 0 | V140: 1 | X140: 1 | Y140: 1 | Z140: 0 | AA140: 0 | AB140: 12 | AC140: 30 | AD140: 4.32 | AE140: 12 | AF140: 0 | AH140: 【対象外】
A141: 125 | B141: 22 | D141: 8 | F141: 822(4床) | G141: ベッド灯 | I141: 壁付け | K141: プルスイッチ | M141: 3000 | N141: LED済は2台のみ | O141: 【器具LED済】 | P141: 0 | Q141: 1 | R141: 2 | S141: 2 | T141: 0 | U141: 0 | V141: 2 | W141: =V141 -> 2 | X141: 2 | Y141: 2 | Z141: 0 | AA141: 0 | AB141: 12 | AC141: 30 | AD141: 0 | AE141: 0 | AF141: 0 | AH141: 【LED済】
A142: 126 | B142: 22 | D142: 8 | F142: 822(4床) | G142: ベッド灯 | I142: 壁付け | K142: カバー | M142: 3000 | N142: ヤマギワ K5005W スイッチプルではなく片切りスイッチ | O142: FPL55+FPL18+ナツメ球 | P142: 84 | Q142: 1 | R142: 2 | S142: 2 | T142: 0 | U142: 0 | V142: 2 | X142: 0 | Y142: 0 | Z142: 2 | AA142: 2 | AB142: 12 | AC142: 30 | AD142: 60.48 | AE142: 168 | AF142: 60.48 | AG142: 168 | AH142: 器具交換
A143: 127 | B143: 22 | D143: 8 | F143: 822(4床) | G143: ベッド灯 | I143: 壁付け | K143: カバー | L143: プルスイッチ | M143: 3000 | N143: 上記と同じ器具 ヤマギワ K5005W | O143: コンパクト形蛍光灯 FPL18EX 【18W】 | P143: 21 | Q143: 1 | R143: 2 | S143: 2 | T143: 0 | U143: 0 | V143: 2 | X143: 2 | Y143: 2 | Z143: 0 | AA143: 0 | AB143: 12 | AC143: 30 | AD143: 15.12 | AE143: 42 | AF143: 0 | AH143: 【対象外】
A144: 128 | B144: 22 | D144: 8 | F144: 822(4床) | G144: ベッド灯 | I144: 壁付け | K144: カバー | L144: プルスイッチ | M144: 3000 | N144: 上記と同じ器具 ヤマギワ K5005W | O144: ナツメ球 5W (口金 ： E12) 【5W】 | P144: 5 | Q144: 1 | R144: 2 | S144: 2 | T144: 0 | U144: 0 | V144: 2 | X144: 2 | Y144: 2 | Z144: 0 | AA144: 0 | AB144: 12 | AC144: 30 | AD144: 3.6 | AE144: 10 | AF144: 0 | AH144: 【対象外】
A145: =IF(COUNTA(B145:O145)=0,"",ROW()-16) -> 129 | B145: 22 | D145: 8 | F145: 822(4床) | G145: ユニバーサルダウンライト | H145: φ150 | I145: 埋込 | J145: 処置灯 | M145: 3000 | O145: ハロゲンランプ（棒状） JD110V85W (口金：E11) 【85W】 | P145: 85 | Q145: 1 | R145: 4 | S145: =IF(R145="","",Q145*R145) -> 4 | T145: 0 | U145: 0 | V145: =IF(S145="","",S145-T145) -> 4 | X145: =IF(O145="","",IF(OR(AH145="【対象外】",AH145="【LED済】"),R145,IF(Y145>0,Y145/Q145,0))) -> 0 | Y145: =IF(O145="","",IF(OR(AH145="管球交換 【間引き対象外】",AH145="器具交換 【間引き対象外】"),T145,IF(OR(AH145="【対象外】",AH145="【LED済】"),S145,0))) -> 0 | Z145: =IF(R145="","",R145-X145) -> 4 | AA145: =IF(S145="","",S145-Y145) -> 4 | AB145: 12 | AC145: 30 | AD145: =IF(O145="","",IF(V145="","",P145*V145*AB145*AC145/1000)) -> 122.4 | AE145: =IF(O145="","",IF(V145="","",P145*V145)) -> 340 | AF145: =IF(O145="","",IF(AA145="","",P145*AA145*AB145*AC145/1000)) -> 122.4 | AG145: =IF(O145="","",IF(AA145="","",IF(AA145=0,"",P145*AA145))) -> 340 | AH145: 器具交換
A146: 130 | B146: 22 | D146: 8 | F146: 822(4床) | G146: ダウンライト | H146: φ150 | I146: 埋込 | M146: 3000 | O146: コンパクト形蛍光灯 FDL13EX 【13W】 | P146: 16 | Q146: 1 | R146: 1 | S146: 1 | T146: 0 | U146: 0 | V146: 1 | X146: 0 | Y146: 0 | Z146: 1 | AA146: 1 | AB146: 12 | AC146: 30 | AD146: 5.76 | AE146: 16 | AF146: 5.76 | AG146: 16 | AH146: 器具交換
A147: 131 | B147: 22 | D147: 8 | F147: 822(4床) | G147: ブラケット | I147: 壁付け | M147: 3000 | O147: 電球形蛍光灯 EFD15/12E (口金：E26) 【12W】 | P147: 12 | Q147: 1 | R147: 1 | S147: 1 | T147: 0 | U147: 0 | V147: 1 | X147: 1 | Y147: 1 | Z147: 0 | AA147: 0 | AB147: 12 | AC147: 30 | AD147: 4.32 | AE147: 12 | AF147: 0 | AH147: 【対象外】
A148: 132 | B148: 22 | D148: 8 | F148: 822(4床) | G148: ダウンライト | H148: φ150 | I148: 埋込 | M148: 3000 | O148: 電球形蛍光灯 EFD15/12E (口金：E26) 【12W】 | P148: 12 | Q148: 1 | R148: 1 | S148: 1 | T148: 0 | U148: 0 | V148: 1 | X148: 1 | Y148: 1 | Z148: 0 | AA148: 0 | AB148: 12 | AC148: 30 | AD148: 4.32 | AE148: 12 | AF148: 0 | AH148: 【対象外】
A149: 133 | B149: 23 | D149: 8 | F149: 823(4床) | G149: ベッド灯 | I149: 壁付け | K149: プルスイッチ | M149: 3000 | N149: LED済は1台のみ | O149: 【器具LED済】 | P149: 0 | Q149: 1 | R149: 1 | S149: 1 | T149: 0 | U149: 0 | V149: 1 | W149: =V149 -> 1 | X149: 1 | Y149: 1 | Z149: 0 | AA149: 0 | AB149: 12 | AC149: 30 | AD149: 0 | AE149: 0 | AF149: 0 | AH149: 【LED済】
A150: 134 | B150: 23 | D150: 8 | F150: 823(4床) | G150: ベッド灯 | I150: 壁付け | K150: カバー | M150: 3000 | N150: ヤマギワ K5005W スイッチプルではなく片切りスイッチ | O150: FPL55+FPL18+ナツメ球 | P150: 84 | Q150: 1 | R150: 3 | S150: 3 | T150: 0 | U150: 0 | V150: 3 | X150: 0 | Y150: 0 | Z150: 3 | AA150: 3 | AB150: 12 | AC150: 30 | AD150: 90.72 | AE150: 252 | AF150: 90.72 | AG150: 252 | AH150: 器具交換
A151: 135 | B151: 23 | D151: 8 | F151: 823(4床) | G151: ベッド灯 | I151: 壁付け | K151: カバー | L151: プルスイッチ | M151: 3000 | N151: 上記と同じ器具 ヤマギワ K5005W | O151: コンパクト形蛍光灯 FPL18EX 【18W】 | P151: 21 | Q151: 1 | R151: 3 | S151: 3 | T151: 0 | U151: 0 | V151: 3 | X151: 3 | Y151: 3 | Z151: 0 | AA151: 0 | AB151: 12 | AC151: 30 | AD151: 22.68 | AE151: 63 | AF151: 0 | AH151: 【対象外】
A152: 136 | B152: 23 | D152: 8 | F152: 823(4床) | G152: ベッド灯 | I152: 壁付け | K152: カバー | L152: プルスイッチ | M152: 3000 | N152: 上記と同じ器具 ヤマギワ K5005W | O152: ナツメ球 5W (口金 ： E12) 【5W】 | P152: 5 | Q152: 1 | R152: 3 | S152: 3 | T152: 0 | U152: 0 | V152: 3 | X152: 3 | Y152: 3 | Z152: 0 | AA152: 0 | AB152: 12 | AC152: 30 | AD152: 5.4 | AE152: 15 | AF152: 0 | AH152: 【対象外】
A153: 137 | B153: 23 | D153: 8 | F153: 823(4床) | G153: ユニバーサルダウンライト | H153: φ150 | I153: 埋込 | J153: 処置灯 | M153: 3000 | O153: ハロゲンランプ（棒状） JD110V85W (口金：E11) 【85W】 | P153: 85 | Q153: 1 | R153: 4 | S153: 4 | T153: 0 | U153: 0 | V153: 4 | X153: 0 | Y153: 0 | Z153: 4 | AA153: 4 | AB153: 12 | AC153: 30 | AD153: 122.4 | AE153: 340 | AF153: 122.4 | AG153: 340 | AH153: 器具交換
A154: 138 | B154: 23 | D154: 8 | F154: 823(4床) | G154: ダウンライト | H154: φ150 | I154: 埋込 | M154: 3000 | O154: コンパクト形蛍光灯 FDL13EX 【13W】 | P154: 16 | Q154: 1 | R154: 1 | S154: 1 | T154: 0 | U154: 0 | V154: 1 | X154: 0 | Y154: 0 | Z154: 1 | AA154: 1 | AB154: 12 | AC154: 30 | AD154: 5.76 | AE154: 16 | AF154: 5.76 | AG154: 16 | AH154: 器具交換
A155: 139 | B155: 23 | D155: 8 | F155: 823(4床) | G155: ブラケット | I155: 壁付け | M155: 3000 | O155: 電球形蛍光灯 EFD15/12E (口金：E26) 【12W】 | P155: 12 | Q155: 1 | R155: 1 | S155: 1 | T155: 0 | U155: 0 | V155: 1 | X155: 1 | Y155: 1 | Z155: 0 | AA155: 0 | AB155: 12 | AC155: 30 | AD155: 4.32 | AE155: 12 | AF155: 0 | AH155: 【対象外】
A156: 140 | B156: 23 | D156: 8 | F156: 823(4床) | G156: ダウンライト | H156: φ150 | I156: 埋込 | M156: 3000 | O156: 電球形蛍光灯 EFD15/12E (口金：E26) 【12W】 | P156: 12 | Q156: 1 | R156: 1 | S156: 1 | T156: 0 | U156: 0 | V156: 1 | X156: 1 | Y156: 1 | Z156: 0 | AA156: 0 | AB156: 12 | AC156: 30 | AD156: 4.32 | AE156: 12 | AF156: 0 | AH156: 【対象外】
A157: 141 | B157: 24 | D157: 8 | F157: 824(4床) | G157: ユニバーサルダウンライト | H157: φ150 | I157: 埋込 | J157: 処置灯 | M157: 3000 | O157: ハロゲンランプ（棒状） JD110V85W (口金：E11) 【85W】 | P157: 85 | Q157: 1 | R157: 4 | S157: 4 | T157: 0 | U157: 0 | V157: 4 | X157: 0 | Y157: 0 | Z157: 4 | AA157: 4 | AB157: 12 | AC157: 30 | AD157: 122.4 | AE157: 340 | AF157: 122.4 | AG157: 340 | AH157: 器具交換
A158: 142 | B158: 24 | D158: 8 | F158: 824(4床) | G158: ベッド灯 | I158: 壁付け | K158: カバー | M158: 3000 | N158: ヤマギワ K5005W スイッチプルではなく片切りスイッチ | O158: FPL55+FPL18+ナツメ球 | P158: 84 | Q158: 1 | R158: 4 | S158: 4 | T158: 0 | U158: 0 | V158: 4 | X158: 0 | Y158: 0 | Z158: 4 | AA158: 4 | AB158: 12 | AC158: 30 | AD158: 120.96 | AE158: 336 | AF158: 120.96 | AG158: 336 | AH158: 器具交換
A159: 143 | B159: 24 | D159: 8 | F159: 824(4床) | G159: ベッド灯 | I159: 壁付け | K159: カバー | L159: プルスイッチ | M159: 3000 | N159: 上記と同じ器具 ヤマギワ K5005W | O159: コンパクト形蛍光灯 FPL18EX 【18W】 | P159: 21 | Q159: 1 | R159: 4 | S159: 4 | T159: 0 | U159: 0 | V159: 4 | X159: 4 | Y159: 4 | Z159: 0 | AA159: 0 | AB159: 12 | AC159: 30 | AD159: 30.24 | AE159: 84 | AF159: 0 | AH159: 【対象外】
A160: 144 | B160: 24 | D160: 8 | F160: 824(4床) | G160: ベッド灯 | I160: 壁付け | K160: カバー | L160: プルスイッチ | M160: 3000 | N160: 上記と同じ器具 ヤマギワ K5005W | O160: ナツメ球 5W (口金 ： E12) 【5W】 | P160: 5 | Q160: 1 | R160: 4 | S160: 4 | T160: 0 | U160: 0 | V160: 4 | X160: 4 | Y160: 4 | Z160: 0 | AA160: 0 | AB160: 12 | AC160: 30 | AD160: 7.2 | AE160: 20 | AF160: 0 | AH160: 【対象外】
A161: 145 | B161: 24 | D161: 8 | F161: 824(4床) | G161: ダウンライト | H161: φ150 | I161: 埋込 | K161: カバー | M161: 3000 | O161: コンパクト形蛍光灯 FDL13EX 【13W】 | P161: 16 | Q161: 1 | R161: 1 | S161: 1 | T161: 0 | U161: 0 | V161: 1 | X161: 0 | Y161: 0 | Z161: 1 | AA161: 1 | AB161: 12 | AC161: 30 | AD161: 5.76 | AE161: 16 | AF161: 5.76 | AG161: 16 | AH161: 器具交換
A162: 146 | B162: 24 | D162: 8 | F162: 824(4床) | G162: ブラケット | H162: φ150 | I162: 壁付け | K162: カバー | M162: 3000 | O162: 電球形蛍光灯 EFD15/12E (口金：E26) 【12W】 | P162: 12 | Q162: 1 | R162: 1 | S162: 1 | T162: 0 | U162: 0 | V162: 1 | X162: 1 | Y162: 1 | Z162: 0 | AA162: 0 | AB162: 12 | AC162: 30 | AD162: 4.32 | AE162: 12 | AF162: 0 | AH162: 【対象外】
A163: 147 | B163: 24 | D163: 8 | F163: 824(4床) | G163: ダウンライト | H163: φ150 | I163: 埋込 | M163: 3000 | O163: 電球形蛍光灯 EFD15/12E (口金：E26) 【12W】 | P163: 12 | Q163: 1 | R163: 1 | S163: 1 | T163: 0 | U163: 0 | V163: 1 | X163: 1 | Y163: 1 | Z163: 0 | AA163: 0 | AB163: 12 | AC163: 30 | AD163: 4.32 | AE163: 12 | AF163: 0 | AH163: 【対象外】
A164: 148 | B164: 25 | D164: 8 | F164: スタッフステーション | G164: 埋込形 | H164: □900 | I164: 埋込 | K164: 乳白カバー | M164: 5000 | O164: コンパクト形蛍光灯 FPR96EX 【96W】 | P164: 100 | Q164: 4 | R164: 5 | S164: 20 | T164: 0 | U164: 0 | V164: 20 | X164: 0 | Y164: 0 | Z164: 5 | AA164: 20 | AB164: 12 | AC164: 30 | AD164: 720 | AE164: 2000 | AF164: 720 | AG164: 2000 | AH164: 管球交換
A165: 149 | B165: 25 | D165: 8 | F165: スタッフステーション | G165: 埋込形 | H165: □900 | I165: 埋込 | K165: 乳白カバー | M165: 5000 | O165: 【器具LED済】 | P165: 0 | Q165: 4 | R165: 1 | S165: 4 | T165: 0 | U165: 0 | V165: 4 | W165: =V165 -> 4 | X165: 1 | Y165: 4 | Z165: 0 | AA165: 0 | AB165: 12 | AC165: 30 | AD165: 0 | AE165: 0 | AF165: 0 | AH165: 【LED済】
A166: 150 | B166: 25 | D166: 8 | F166: スタッフステーション | G166: ダウンライト | H166: φ150 | I166: 埋込 | M166: 3000 | O166: コンパクト形蛍光灯 FDL18EX 【18W】 | P166: 21 | Q166: 1 | R166: 5 | S166: 5 | T166: 0 | U166: 0 | V166: 5 | X166: 0 | Y166: 0 | Z166: 5 | AA166: 5 | AB166: 12 | AC166: 30 | AD166: 37.8 | AE166: 105 | AF166: 37.8 | AG166: 105 | AH166: 器具交換
A167: 151 | B167: 26 | D167: 8 | F167: 休憩室 | G167: 埋込形 | H167: W150 | I167: 埋込 | K167: Cチャンネル回避 | M167: 4000 | O167: 直管蛍光灯 FHF32EX 高出力形 【45W】 | P167: 48 | Q167: 1 | R167: 2 | S167: 2 | T167: 0 | U167: 0 | V167: 2 | X167: 0 | Y167: 0 | Z167: 2 | AA167: 2 | AB167: 12 | AC167: 30 | AD167: 34.56 | AE167: 96 | AF167: 34.56 | AG167: 96 | AH167: 管球交換
A168: 152 | B168: 26 | D168: 8 | F168: 休憩室 | G168: 流し元灯 | H168: W150 | I168: 天付け | K168: プルスイッチ | M168: 5000 | O168: 直管蛍光灯 FL20S 【20W】 | P168: 23 | Q168: 1 | R168: 1 | S168: 1 | T168: 0 | U168: 0 | V168: 1 | X168: 0 | Y168: 0 | Z168: 1 | AA168: 1 | AB168: 12 | AC168: 30 | AD168: 8.28 | AE168: 23 | AF168: 8.28 | AG168: 23 | AH168: 管球交換
A169: 153 | B169: 27 | D169: 8 | F169: 倉庫1 | G169: 逆富士形 | H169: W100 | I169: 天付け | M169: 4000 | O169: 直管蛍光灯 FHF32EX 高出力形 【45W】 | P169: 48 | Q169: 1 | R169: 1 | S169: 1 | T169: 0 | U169: 0 | V169: 1 | X169: 0 | Y169: 0 | Z169: 1 | AA169: 1 | AB169: 12 | AC169: 30 | AD169: 17.28 | AE169: 48 | AF169: 17.28 | AG169: 48 | AH169: 管球交換
A170: 154 | B170: 28 | D170: 8 | F170: 処置室1 | G170: 埋込形 | H170: W150 | I170: 埋込 | K170: Cチャンネル回避 | M170: 4000 | O170: 直管蛍光灯 FHF32EX 高出力形 【45W】 | P170: 48 | Q170: 1 | R170: 2 | S170: 2 | T170: 0 | U170: 0 | V170: 2 | X170: 0 | Y170: 0 | Z170: 2 | AA170: 2 | AB170: 12 | AC170: 30 | AD170: 34.56 | AE170: 96 | AF170: 34.56 | AG170: 96 | AH170: 管球交換
A171: 155 | B171: 29 | D171: 8 | F171: デイルーム | G171: 埋込形 | H171: φ450 | I171: 埋込 | K171: 乳白カバー | M171: 5000 | N171: 器具破損 | O171: 二重環形蛍光灯 FHD100E 【97W】 | P171: 100 | Q171: 1 | R171: 2 | S171: 2 | T171: 0 | U171: 0 | V171: 2 | X171: 0 | Y171: 0 | Z171: 2 | AA171: 2 | AB171: 12 | AC171: 30 | AD171: 72 | AE171: 200 | AF171: 72 | AG171: 200 | AH171: 器具交換
A172: 156 | B172: 29 | D172: 8 | F172: デイルーム | G172: ダウンライト | H172: φ100 | I172: 埋込 | M172: 3000 | O172: ミニクリプトン レフ形 KR100/110V45W (口金：E17) 【45W】 | P172: 45 | Q172: 1 | R172: 1 | S172: 1 | T172: 0 | U172: 0 | V172: 1 | X172: 0 | Y172: 0 | Z172: 1 | AA172: 1 | AB172: 12 | AC172: 30 | AD172: 16.2 | AE172: 45 | AF172: 16.2 | AG172: 45 | AH172: 管球交換
A173: 157 | B173: 30 | D173: 8 | F173: 洗濯室 汚物処理室 | G173: 埋込形 | H173: W150 | I173: 埋込 | K173: Cチャンネル回避 | M173: 4000 | O173: 直管蛍光灯 FHF32EX 高出力形 【45W】 | P173: 48 | Q173: 1 | R173: 2 | S173: 2 | T173: 0 | U173: 0 | V173: 2 | X173: 0 | Y173: 0 | Z173: 2 | AA173: 2 | AB173: 12 | AC173: 30 | AD173: 34.56 | AE173: 96 | AF173: 34.56 | AG173: 96 | AH173: 管球交換
A174: 158 | B174: 31 | D174: 8 | F174: 浴室 | G174: ブラケット | I174: 壁付け | K174: 防水カバー | M174: 3000 | O174: 電球形蛍光灯 EFD15/12E (口金：E26) 【12W】 | P174: 12 | Q174: 1 | R174: 2 | S174: 2 | T174: 0 | U174: 0 | V174: 2 | X174: 2 | Y174: 2 | Z174: 0 | AA174: 0 | AB174: 12 | AC174: 30 | AD174: 8.64 | AE174: 24 | AF174: 0 | AH174: 【対象外】
A175: 159 | B175: 31 | D175: 8 | F175: 浴室 | G175: 埋込形 | H175: W220 | I175: 埋込 | M175: 4000 | O175: 直管蛍光灯 FHF16EX 高出力形 【23W】 | P175: 27 | Q175: 2 | R175: 1 | S175: 2 | T175: 0 | U175: 0 | V175: 2 | X175: 0 | Y175: 0 | Z175: 1 | AA175: 2 | AB175: 12 | AC175: 30 | AD175: 19.44 | AE175: 54 | AF175: 19.44 | AG175: 54 | AH175: 管球交換
A176: 160 | B176: 31 | D176: 8 | F176: 浴室 | G176: 洗面ユニット | I176: 壁付け | M176: 3000 | O176: ボール電球 GC100/110V100W (口金：E26) 【100W】 | P176: 100 | Q176: 1 | R176: 1 | S176: 1 | T176: 0 | U176: 0 | V176: 1 | X176: 1 | Y176: 1 | Z176: 0 | AA176: 0 | AB176: 12 | AC176: 30 | AD176: 36 | AE176: 100 | AF176: 0 | AH176: 【対象外】
A177: 161 | B177: 32 | D177: 8 | F177: ナースステーション | G177: スクエア | H177: □600 | I177: 埋込 | K177: 乳白カバー | M177: 5000 | O177: コンパクト形蛍光灯 FPL55EX 【55W】 | P177: 58 | Q177: 4 | R177: 2 | S177: 8 | T177: 0 | U177: 0 | V177: 8 | X177: 0 | Y177: 0 | Z177: 2 | AA177: 8 | AB177: 12 | AC177: 30 | AD177: 167.04 | AE177: 464 | AF177: 167.04 | AG177: 464 | AH177: 管球交換
A178: 162 | B178: 32 | D178: 8 | F178: スタッフステーション | G178: ダウンライト | H178: φ150 | I178: 埋込 | M178: 3000 | O178: コンパクト形蛍光灯 FDL18EX 【18W】 | P178: 21 | Q178: 1 | R178: 3 | S178: 3 | T178: 0 | U178: 0 | V178: 3 | X178: 0 | Y178: 0 | Z178: 3 | AA178: 3 | AB178: 12 | AC178: 30 | AD178: 22.68 | AE178: 63 | AF178: 22.68 | AG178: 63 | AH178: 器具交換
A179: 163 | B179: 32 | D179: 8 | F179: ナースステーション | G179: ダウンライト | H179: φ150 | I179: 埋込 | M179: 3000 | O179: ボール電球 GC100/110V60W (口金：E26) 【60W】 | P179: 60 | Q179: 1 | R179: 1 | S179: 1 | T179: 0 | U179: 0 | V179: 1 | X179: 1 | Y179: 1 | Z179: 0 | AA179: 0 | AB179: 12 | AC179: 30 | AD179: 21.6 | AE179: 60 | AF179: 0 | AH179: 【対象外】
A180: 164 | B180: 32 | D180: 8 | F180: ナースステーション | G180: 埋込形 | H180: W220 | I180: 埋込 | K180: Cチャンネル回避 | M180: 4000 | O180: 直管蛍光灯 FHF32EX 高出力形 【45W】 | P180: 48 | Q180: 2 | R180: 1 | S180: 2 | T180: 0 | U180: 0 | V180: 2 | X180: 0 | Y180: 0 | Z180: 1 | AA180: 2 | AB180: 12 | AC180: 30 | AD180: 34.56 | AE180: 96 | AF180: 34.56 | AG180: 96 | AH180: 管球交換
A181: 165 | B181: 33 | D181: 8 | F181: 廊下 | G181: コーナー灯 | I181: 壁付け | J181: 間接照明 | M181: 4000 | O181: 直管蛍光灯 FHF32EX 高出力形 【45W】 | P181: 48 | Q181: 1 | R181: 13 | S181: 13 | T181: 0 | U181: 0 | V181: 13 | X181: 0 | Y181: 0 | Z181: 13 | AA181: 13 | AB181: 12 | AC181: 30 | AD181: 224.64 | AE181: 624 | AF181: 224.64 | AG181: 624 | AH181: 管球交換
A182: 166 | B182: 34 | D182: 8 | F182: 浴室 | G182: ブラケット | I182: 壁付け | K182: 防水カバー | M182: 3000 | O182: 電球形蛍光灯 EFD15/12E (口金：E26) 【12W】 | P182: 12 | Q182: 1 | R182: 2 | S182: 2 | T182: 0 | U182: 0 | V182: 2 | X182: 2 | Y182: 2 | Z182: 0 | AA182: 0 | AB182: 12 | AC182: 30 | AD182: 8.64 | AE182: 24 | AF182: 0 | AH182: 【対象外】
A183: 167 | B183: 34 | D183: 8 | F183: 浴室 | G183: 埋込形 | H183: W220 | I183: 埋込 | M183: 4000 | O183: 直管蛍光灯 FHF16EX 高出力形 【23W】 | P183: 27 | Q183: 2 | R183: 1 | S183: 2 | T183: 0 | U183: 0 | V183: 2 | X183: 0 | Y183: 0 | Z183: 1 | AA183: 2 | AB183: 12 | AC183: 30 | AD183: 19.44 | AE183: 54 | AF183: 19.44 | AG183: 54 | AH183: 管球交換
A184: 168 | B184: 34 | D184: 8 | F184: 浴室 | G184: 洗面ユニット | I184: 壁付け | M184: 3000 | O184: ボール電球 GC100/110V100W (口金：E26) 【100W】 | P184: 100 | Q184: 1 | R184: 1 | S184: 1 | T184: 0 | U184: 0 | V184: 1 | X184: 1 | Y184: 1 | Z184: 0 | AA184: 0 | AB184: 12 | AC184: 30 | AD184: 36 | AE184: 100 | AF184: 0 | AH184: 【対象外】
A185: 169 | B185: 35 | D185: 8 | F185: シャワー室 | G185: ブラケット | I185: 壁付け | K185: 防水カバー | M185: 3000 | O185: 電球形蛍光灯 EFD15/12E (口金：E26) 【12W】 | P185: 12 | Q185: 1 | R185: 1 | S185: 1 | T185: 0 | U185: 0 | V185: 1 | X185: 1 | Y185: 1 | Z185: 0 | AA185: 0 | AB185: 12 | AC185: 30 | AD185: 4.32 | AE185: 12 | AF185: 0 | AH185: 【対象外】
A186: 170 | B186: 35 | D186: 8 | F186: シャワー室 | G186: 埋込形 | H186: W220 | I186: 埋込 | M186: 4000 | O186: 直管蛍光灯 FHF16EX 高出力形 【23W】 | P186: 27 | Q186: 2 | R186: 1 | S186: 2 | T186: 0 | U186: 0 | V186: 2 | X186: 0 | Y186: 0 | Z186: 1 | AA186: 2 | AB186: 12 | AC186: 30 | AD186: 19.44 | AE186: 54 | AF186: 19.44 | AG186: 54 | AH186: 管球交換
A187: 171 | B187: 35 | D187: 8 | F187: シャワー室 | G187: 洗面ユニット | I187: 壁付け | M187: 3000 | O187: ボール電球 GC100/110V100W (口金：E26) 【100W】 | P187: 100 | Q187: 1 | R187: 1 | S187: 1 | T187: 0 | U187: 0 | V187: 1 | X187: 1 | Y187: 1 | Z187: 0 | AA187: 0 | AB187: 12 | AC187: 30 | AD187: 36 | AE187: 100 | AF187: 0 | AH187: 【対象外】
A188: 172 | B188: 36 | D188: 8 | F188: 汚物処理室 | G188: 逆富士形 | H188: W200 | I188: 天付け | M188: 4000 | O188: 直管蛍光灯 FHF32EX 高出力形 【45W】 | P188: 48 | Q188: 2 | R188: 1 | S188: 2 | T188: 0 | U188: 0 | V188: 2 | X188: 0 | Y188: 0 | Z188: 1 | AA188: 2 | AB188: 12 | AC188: 30 | AD188: 34.56 | AE188: 96 | AF188: 34.56 | AG188: 96 | AH188: 管球交換
A189: 173 | B189: 37 | D189: 8 | F189: 洗濯室 | G189: 埋込形 | H189: W220 | I189: 埋込 | K189: Cチャンネル回避 | M189: 4000 | O189: 直管蛍光灯 FHF32EX 高出力形 【45W】 | P189: 48 | Q189: 2 | R189: 1 | S189: 2 | T189: 0 | U189: 0 | V189: 2 | X189: 0 | Y189: 0 | Z189: 1 | AA189: 2 | AB189: 12 | AC189: 30 | AD189: 34.56 | AE189: 96 | AF189: 34.56 | AG189: 96 | AH189: 管球交換
A190: 174 | B190: 38 | D190: 8 | F190: 車椅子トイレ | G190: 埋込形 | H190: W150 | I190: 埋込 | K190: Cチャンネル回避 | L190: 人感センサー(別置) | M190: 4000 | O190: 直管蛍光灯 FHF32EX 高出力形 【45W】 | P190: 48 | Q190: 1 | R190: 1 | S190: 1 | T190: 0 | U190: 0 | V190: 1 | X190: 0 | Y190: 0 | Z190: 1 | AA190: 1 | AB190: 12 | AC190: 30 | AD190: 17.28 | AE190: 48 | AF190: 17.28 | AG190: 48 | AH190: 管球交換
A191: 175 | B191: 38 | D191: 8 | F191: 車椅子トイレ | G191: ブラケット | I191: 壁付け | K191: 人感センサー(別置) | L191: カバー | M191: 3000 | O191: コンパクト形蛍光灯 FML13EX 【13W】 | P191: 16 | Q191: 1 | R191: 1 | S191: 1 | T191: 0 | U191: 0 | V191: 1 | X191: 0 | Y191: 0 | Z191: 1 | AA191: 1 | AB191: 12 | AC191: 30 | AD191: 5.76 | AE191: 16 | AF191: 5.76 | AG191: 16 | AH191: 器具交換
A192: 176 | B192: 39 | D192: 8 | F192: トイレ | G192: ダウンライト | H192: φ150 | I192: 埋込 | M192: 3000 | N192: E26 | O192: 【管球LED済】 | P192: 0 | Q192: 1 | R192: 1 | S192: 1 | T192: 0 | U192: 0 | V192: 1 | W192: =V192 -> 1 | X192: 1 | Y192: 1 | Z192: 0 | AA192: 0 | AB192: 12 | AC192: 30 | AD192: 0 | AE192: 0 | AF192: 0 | AH192: 【LED済】
A193: 177 | B193: 40 | D193: 8 | F193: 清潔リネン庫 | G193: 逆富士形 | H193: W100 | I193: 天付け | M193: 4000 | O193: 直管蛍光灯 FHF32EX 高出力形 【45W】 | P193: 48 | Q193: 1 | R193: 1 | S193: 1 | T193: 0 | U193: 0 | V193: 1 | X193: 0 | Y193: 0 | Z193: 1 | AA193: 1 | AB193: 12 | AC193: 30 | AD193: 17.28 | AE193: 48 | AF193: 17.28 | AG193: 48 | AH193: 管球交換
A194: 178 | B194: 41 | D194: 8 | F194: 介護浴室 | G194: 浴室灯 | I194: 天付け | K194: 防水カバー | L194: 防水ソケット | M194: 4000 | O194: 直管蛍光灯 FHF32EX 高出力形 【45W】 | P194: 48 | Q194: 1 | R194: 6 | S194: 6 | T194: 0 | U194: 0 | V194: 6 | X194: 0 | Y194: 0 | Z194: 6 | AA194: 6 | AB194: 12 | AC194: 30 | AD194: 103.68 | AE194: 288 | AF194: 103.68 | AG194: 288 | AH194: 管球交換
A195: 179 | B195: 42 | D195: 8 | F195: 廊下 | G195: コーナー灯 | I195: 壁付け | J195: 間接照明 | M195: 4000 | O195: 直管蛍光灯 FHF32EX 高出力形 【45W】 | P195: 48 | Q195: 1 | R195: 34 | S195: 34 | T195: 0 | U195: 0 | V195: 34 | X195: 0 | Y195: 0 | Z195: 34 | AA195: 34 | AB195: 12 | AC195: 30 | AD195: 587.52 | AE195: 1632 | AF195: 587.52 | AG195: 1632 | AH195: 管球交換
A196: 180 | B196: 42 | D196: 8 | F196: 廊下 | G196: ダウンライト | H196: φ100 | I196: 埋込 | M196: 3000 | O196: ミニクリプトン レフ形 KR100/110V45W (口金：E17) 【45W】 | P196: 45 | Q196: 1 | R196: 1 | S196: 1 | T196: 0 | U196: 0 | V196: 1 | X196: 0 | Y196: 0 | Z196: 1 | AA196: 1 | AB196: 12 | AC196: 30 | AD196: 16.2 | AE196: 45 | AF196: 16.2 | AG196: 45 | AH196: 管球交換
A197: 181 | B197: 42 | D197: 8 | F197: 廊下 | G197: 埋込形 | I197: 埋込 | M197: 4000 | N197: W280 案内板付き | O197: 直管蛍光灯 FHF16EX 高出力形 【23W】 | P197: 27 | Q197: 2 | R197: 2 | S197: 4 | T197: 0 | U197: 0 | V197: 4 | X197: 0 | Y197: 0 | Z197: 2 | AA197: 4 | AB197: 12 | AC197: 30 | AD197: 38.88 | AE197: 108 | AF197: 38.88 | AG197: 108 | AH197: 管球交換
A198: 182 | B198: 43 | D198: 8 | F198: 廊下 | G198: 埋込形 | H198: W150 | I198: 埋込 | K198: Cチャンネル回避 | M198: 4000 | O198: 直管蛍光灯 FHF32EX 高出力形 【45W】 | P198: 48 | Q198: 1 | R198: 3 | S198: 3 | T198: 0 | U198: 0 | V198: 3 | X198: 0 | Y198: 0 | Z198: 3 | AA198: 3 | AB198: 12 | AC198: 30 | AD198: 51.84 | AE198: 144 | AF198: 51.84 | AG198: 144 | AH198: 管球交換
A199: 183 | B199: 43 | D199: 8 | F199: 廊下 | G199: ダウンライト | H199: φ100 | I199: 埋込 | M199: 3000 | O199: ミニクリプトン レフ形 KR100/110V45W (口金：E17) 【45W】 | P199: 45 | Q199: 1 | R199: 1 | S199: 1 | T199: 0 | U199: 0 | V199: 1 | X199: 0 | Y199: 0 | Z199: 1 | AA199: 1 | AB199: 12 | AC199: 30 | AD199: 16.2 | AE199: 45 | AF199: 16.2 | AG199: 45 | AH199: 管球交換
A200: 184 | B200: 44 | D200: 8 | F200: 廊下 | G200: コーナー灯 | I200: 壁付け | J200: 間接照明 | M200: 4000 | O200: 直管蛍光灯 FHF32EX 高出力形 【45W】 | P200: 48 | Q200: 1 | R200: 28 | S200: 28 | T200: 0 | U200: 0 | V200: 28 | X200: 0 | Y200: 0 | Z200: 28 | AA200: 28 | AB200: 12 | AC200: 30 | AD200: 483.84 | AE200: 1344 | AF200: 483.84 | AG200: 1344 | AH200: 管球交換
A201: 185 | B201: 44 | D201: 8 | F201: 廊下 | G201: 埋込形 | I201: 埋込 | M201: 4000 | N201: W280 案内板付き | O201: 直管蛍光灯 FHF16EX 高出力形 【23W】 | P201: 27 | Q201: 2 | R201: 2 | S201: 4 | T201: 0 | U201: 0 | V201: 4 | X201: 0 | Y201: 0 | Z201: 2 | AA201: 4 | AB201: 12 | AC201: 30 | AD201: 38.88 | AE201: 108 | AF201: 38.88 | AG201: 108 | AH201: 管球交換
A202: 186 | B202: 44 | D202: 8 | F202: 廊下 | G202: ダウンライト | H202: φ150 | I202: 埋込 | M202: 3000 | O202: コンパクト形蛍光灯 FDL18EX 【18W】 | P202: 21 | Q202: 1 | R202: 2 | S202: 2 | T202: 0 | U202: 0 | V202: 2 | X202: 0 | Y202: 0 | Z202: 2 | AA202: 2 | AB202: 12 | AC202: 30 | AD202: 15.12 | AE202: 42 | AF202: 15.12 | AG202: 42 | AH202: 器具交換
A203: 187 | B203: 45 | D203: 8 | F203: 廊下 | G203: コーナー灯 | I203: 壁付け | J203: 間接照明 | M203: 4000 | O203: 直管蛍光灯 FHF32EX 高出力形 【45W】 | P203: 48 | Q203: 1 | R203: 6 | S203: 6 | T203: 0 | U203: 0 | V203: 6 | X203: 0 | Y203: 0 | Z203: 6 | AA203: 6 | AB203: 12 | AC203: 30 | AD203: 103.68 | AE203: 288 | AF203: 103.68 | AG203: 288 | AH203: 管球交換
... 2472 more rows
